Workbook

Sheet Info
B2: BDEW / VKU / GEODE - Excel-Tabelle mit verfahrensspezifischen Parameter
B4: Im Rahmen der Veröffentlichungspflichten des Netzbetreibers zum Standardlastprofilverfahren hat jeder Netzbetreiber
B5: zu seinem Profilverfahren die folgende Excel-Tabelle auf seiner Internetseite zu veröffentlichen.
B7: Die Veröffentlichung erfolgt im Rahmen der Vorgaben der Kooperationsvereinbarung und des Leitfandens "Abwicklung von Standardlastprofilen Gas".
B8: Sofern Anpassungen am Bilanzierungsverfahren vorgenommen werden, ist die Excel-Tabelle stets in aktualisierter Form zu veröffentlichen.
B10: Hinweise:
B11: Sofern sich verfahrensspezifische Parameter für vorhandene Netzgebiete unterscheiden, ist für jedes Netzgebiet eine separate Datei auszufüllen.
B12: Bei Netzbetreibern mit Marktgebietüberlappung sollte das SLP Verfahren in beiden Marktgebieten identisch sein.
B13: Bei Netzbetreibern mit Netzgebieten mit H-Gas und L-Gas ist für jedes Netzgebiet eine separate Datei auszufüllen.
B15: Herausgeber:
B17: BDEW Bundesverband der Energie- und Wasserwirtschaft e.V.,
B18: Reinhardtstraße 32
B19: 10117 Berlin
B21: Verband kommunaler Unternehmen e.V. (VKU)
B22: Invalidenstraße 91
B23: 10115 Berlin
B25: GEODE – Groupement Européen des entreprises et Organismes de Distribution d’Énergie, EWIV
B26: Magazinstraße 15-16
B27: 10179 Berlin
B29: Stand: | C29: 2015-09-01
B30: Version: | C30: 1.0

Sheet Netzbetreiber
B2: Netzbetreiberinformationen
C4: Stand der verf.-spezif. Parameter ("Speicherdatum" der Datei): | D4: 2015-09-23
C6: verf.-spezif. Parameter dieser Datei sind gültig ab: | D6: 2015-10-01
B9: 1. | C9: Name des Netzbetreibers: | D9: Stadtwerke Walldof GmbH & Co. KG
B11: 2. | C11: Marktpartner-ID (DVGW-Nummer des Netzbetreibers) | D11: 9870096700000
B13: 3. | C13: Straße, Nr.: | D13: Altrottstraße 39
B15: 4. | C15: Postleitzahl: | D15: D-69190
B17: 5. | C17: Ort: | D17: Walldorf
B19: 6. | C19: Ansprechpartner SLP-Bilanzierung: | D19: Peter Huber
B21: 7. | C21: Email-Adresse: | D21: peter.huber@stadtwerke-walldorf.de
B23: 8. | C23: Telefonnummer des Ansprechpartners: | D23: 06227-8288241
B25: 9. | C25: Anzahl betreuter Netzgebiete (Angabe 1 … 20) | D25: 1
B27: 10. | C27: In dieser Datei erfasstes Netzgebiet (eine Datei je Netzgebiet): | D27: Netzgebiet 1
C28: Angaben gelten für alle Netzgebiete | D28: =IF(D27<>C28,VLOOKUP(D27,$C$29:$D$48,2,FALSE),C28) -> Walldorf
C29: Netzgebiet 1 | D29: Walldorf
C30: Netzgebiet 2
C31: Netzgebiet 3
C32: Netzgebiet 4
C33: Netzgebiet 5
C34: Netzgebiet 6
C35: Netzgebiet 7
C36: Netzgebiet 8
C37: Netzgebiet 9
C38: Netzgebiet 10
C39: Netzgebiet 11
C40: Netzgebiet 12
C41: Netzgebiet 13
C42: Netzgebiet 14
C43: Netzgebiet 15
C44: Netzgebiet 16
C45: Netzgebiet 17
C46: Netzgebiet 18
C47: Netzgebiet 19
C48: Netzgebiet 20

Sheet SLP-Verfahren
B2: Stammdaten Netzgebiet
C5: Netzbetreiber: | D5: =Netzbetreiber!$D$9 -> Stadtwerke Walldof GmbH & Co. KG
C6: Netzgebiet: | D6: =Netzbetreiber!D28 -> Walldorf
C7: Marktpartner-ID: | D7: =Netzbetreiber!$D$11 -> 9870096700000
C8: gültig ab: | D8: =Netzbetreiber!$D$6 -> 2015-10-01
B11: 11. | C11: Marktgebiet: | D11: NCG | H11: NCG | I11: Gaspool | J11: MGÜ (NCG/Gaspool)
B13: 12. | C13: Gasfamilie: | D13: H-Gas | H13: H-Gas | I13: L-Gas
B15: 13. | C15: Netzkontonummer NCG: | D15: NCHN00700967000
C16: Netzkontonummer Gaspool: | D16: GASPOOLNF33
B18: 14. | C18: Verwendetes SLP-Verfahren: | D18: synthetisch | H18: synthetisch | I18: analytisch
C19: =HLOOKUP($D$18,$H$18:$I$20,2,0) -> => zeitnah ermittelter Netzzustand fließt nicht in Allokation ein | H19: => zeitnah ermittelter Netzzustand fließt nicht in Allokation ein | I19: => zeitnah ermittelter Netzustand bestimmt Höhe der täglichen Allokation
C20: =HLOOKUP($D$18,$H$18:$I$20,3,0) -> => Zeitreihentyp SLPsyn | H20: => Zeitreihentyp SLPsyn | I20: => Zeitreihentyp SLPana
B22: 15. | C22: Bilanzierungsrelevanter Wert | D22: Kundenwert [KW] | H22: Kundenwert [KW] | I22: Jahresverbrauchsprognose [JVP]
C23: =HLOOKUP(D22,H22:I23,2,0) -> nach TU-München Verfahren | D23: JVP / Multiplikator(SLP-Typ) | H23: nach TU-München Verfahren | I23: Berechnung der Tagesmenge mit:
C24: Allokationsfunktion für die Tagesmenge: | D24: =IF(D22=$H$22,L24,IF(D23=$H$24,M24,N24)) -> => Q(D) = KW x h(T, SLP-Typ) x F(WT) | H24: JVP / Multiplikator(SLP-Typ) | I24: JVP x h(T, SLP-Typ') | L24: => Q(D) = KW x h(T, SLP-Typ) x F(WT) | M24: => Q(D) = JVP / M(SLP-Typ) x h(T, SLP-Typ) x F(WT) | N24: => Q(D) = JVP x h(T, SLP-Typ') x F(WT)
B26: 16. | C26: Korrekturfaktor (synthetisches Verfahren): | D26: nein | H26: ja | I26: nein
C27: Art des Korrekturfaktors | D27: F(kor) = 1 | H27: F(kor) = 1 | I27: statisch | J27: dynamisch
C28: =HLOOKUP(D27,H27:J28,2,0) -> => Q(Allokation) = Q(Synth.); F(kor) = 1 | D28: 1.00 | H28: => Q(Allokation) = Q(Synth.); F(kor) = 1 | I28: => Q(Allokation) = Q(Synth.) × F(kor); F(kor) = | J28: => Q(Allokation) = Q(Synth.) × F(opt)
C29: =HLOOKUP(D27,H27:J29,3,0) ->  | I29: Hinweis: Korrekturfaktoren im synthetischen Verfahren sind von der BNetzA zu genehmigen. | J29: Hinweis: dynamische Korrekturfaktoren sind tägl. als anwendungsspezif. Parameter bereitzustellen.
B31: 17. | C31: Optimierungsfaktor (analytisches Verfahren): | D31: nein | H31: ja | I31: nein
C32: =HLOOKUP(D31,$H$31:$I$32,2,0) -> => Q(Allokation) = Q(D-2); F(opt) = 1 | H32: => Q(Allokation) = Q(D-2) × F(opt) | I32: => Q(Allokation) = Q(D-2); F(opt) = 1
C33: =HLOOKUP(D31,$H$31:$I$33,3,0) ->  | H33: Hinweis: beim Verwendung von Optimierungsfaktoren, sind tägl. anwendungsspezif. Parameter bereitzustellen.
B35: 18. | C35: Anzahl verwendeter Profile: | D35: 13
B37: 19. | C37: Anwendungsgrenzen SLP - Arbeit [kWh]: | D37: < 1,500,000 kWh | E37: (*)
C38: (Standard nach § 24 Abs. 1 u. 2 GasNZV: 1,5 Mio. kWh pro Jahr)
B40: 20. | C40: Anwendungsgrenzen SLP - Leistung [kW]: | D40: < 500 kW | E40: (**)
C41: (Standard nach § 24 Abs. 1 u. 2 GasNZV: 500 kW)
C43: (*) Angabe Grenzwert oder Verweis auf Hinterlegungsquelle
C44: (**) optionale Angabe
B46: 21. | C46: Anzahl der Temperaturgebiete des NG: | D46: 1 | H46: 1 | I46: 2 | J46: 3 | K46: 4 | L46: 5 | M46: 6 | N46: 7 | O46: 8 | P46: 9 | Q46: 10 | R46: 11 | S46: 12 | T46: 13 | U46: 14 | V46: 15
H47: =IF(H46<=$D$46,H46,"") -> 1 | I47: =IF(I46<=$D$46,I46,"") -> 
C48: SLP-Temp-Gebiet 01 | D48: Walldorf
C49: SLP-Temp-Gebiet 02
C50: SLP-Temp-Gebiet 03
C51: SLP-Temp-Gebiet 04
C52: SLP-Temp-Gebiet 05
C53: SLP-Temp-Gebiet 06
C54: SLP-Temp-Gebiet 07
C55: SLP-Temp-Gebiet 08
C56: SLP-Temp-Gebiet 09
C57: SLP-Temp-Gebiet 10
C58: SLP-Temp-Gebiet 11
C59: SLP-Temp-Gebiet 12
C60: SLP-Temp-Gebiet 13
C61: SLP-Temp-Gebiet 14
C62: SLP-Temp-Gebiet 15

Sheet SLP-Temp-Gebiet #01
B2: Bildungsregel Temperaturzeitreihe(n) - a.) Allokationstemperatur und b.) Kundenwerttemperatur
C4: Netzbetreiber: | E4: =Netzbetreiber!D9 -> Stadtwerke Walldof GmbH & Co. KG
C5: Netzgebiet: | E5: =Netzbetreiber!D28 -> Walldorf
C6: Marktpartner-ID: | E6: =Netzbetreiber!D11 -> 9870096700000
C7: gültig ab: | E7: =Netzbetreiber!D6 -> 2015-10-01
H8: Hinweis:
C9: Anzahl der Temperaturgebiete des Netzgebietes: | F9: ='SLP-Verfahren'!D46 -> 1 | H9: Bei mehreren Temperaturgebieten je Netzgebiet jeweils ein weiteres "Excel-Tabellenblatt" je
C10: Nummer des Temperaturgebietes: | F10: 1 | H10: Temperaturgebiet einfügen. Bitte SLP-Temp-Gebiet # "##" in Namen des Excel-Tabellenblattes aufnehmen.
C11: Name des Temperaturgebietes: | F11: =INDEX('SLP-Verfahren'!D48:D62,'SLP-Temp-Gebiet #01'!F10) -> Walldorf
C13: Temperaturversatz (der Knickpunkt Temperatur) | F13: Tag: | G13: Monat: | H13: DTKP
C14: Heizperiode Kernzeit Winter | E14: Beginn: | F14: 15. | G14: Oktober | H14: +0.00 °C | O14: anderer Wetter-Dienstleister (falls verwendet): | R14: Januar | S14: Februar | T14: März | U14: April | V14: Mai | W14: Juni | X14: Juli | Y14: August | Z14: September | AA14: Oktober | AB14: November | AC14: Dezember
C15: Sommer-/Übergangsperiode | E15: Beginn: | F15: 1. | G15: März | H15: +0.00 °C | O15: Deutscher Wetterdienst | R15: 1. | S15: 2. | T15: 3. | U15: 4. | V15: 5. | W15: 6. | X15: 7. | Y15: 8. | Z15: 9. | AA15: 10. | AB15: 11. | AC15: 12. | AD15: 13. | AE15: 14. | AF15: 15. | AG15: 16. | AH15: 17. | AI15: 18. | AJ15: 19. | AK15: 20. | AL15: 21. | AM15: 22. | AN15: 23. | AO15: 24. | AP15: 25. | AQ15: 26. | AR15: 27. | AS15: 28. | AT15: 29. | AU15: 30. | AV15: 31.
B17: a.) für Allokationstemperatur (auch für Misch-Allokationstempertur [virt. Wetter-Station])
C18: Anzahl Stationen für Misch-Allokationstemperatur: | F18: 1
E19: =IF(E20>$F$18,0,1) -> 1 | F19: =IF(F20>$F$18,0,1) -> 0 | G19: 0 | H19: 0 | I19: 0 | J19: 0 | K19: 0 | L19: 0 | M19: 0 | N19: 0
C20: Temperaturstationen | D20: Sn | E20: Station S 1 | F20: Station S 2 | G20: Station S 3 | H20: Station S 4 | I20: Station S 5 | J20: Station S 6 | K20: Station S 7 | L20: Station S 8 | M20: Station S 9 | N20: Station S 10 | O20: Art des Feldes
C21: Gewichtungsfaktoren (Station) | D21: g(Sn) | E21: =1-SUMPRODUCT(F19:N19,F21:N21) -> 1.0000 | F21: =ROUND(F22/$D$22,4) -> 1.0000 | G21: =ROUND(G22/$D$22,4) -> 0.000 | H21: 0.000 | I21: 0.000 | J21: 0.000 | K21: 0.000 | L21: 0.000 | M21: 0.000 | N21: 0.000
C22: Gewichte (Station) G(Sn) | D22: =SUMPRODUCT(E22:N22,E19:N19) -> 1.000 | E22: 1.0000 | F22: 1.0000 | O22: Num. Wert
C23: Wetter-DL | E23: DWD | F23: DWD | G23: DWD | H23: DWD | I23: DWD | J23: DWD | K23: DWD | L23: DWD | M23: DWD | N23: DWD | O23: Auswahlfeld | R23: DWD | S23: MeteoGroup | T23: =O15 -> Deutscher Wetterdienst
C24: Name der Station | E24: Waghäusel | F24: DEF-St. | O24: Textfeld
C25: Stations-Nr. | E25: 5275 | F25: xxxxx | O25: Code | R25: St.-Nr.
C26: Klima-Zeitreihe | E26: Temp. (2m) | F26: Temp. (2m) | O26: Auswahlfeld | R26: Temp. (2m) | S26: Sonstiges
C28: Anzahl Temperaturen für Zeitreihengewichtung: | F28: 4
E29: =IF(E30>$F$28,0,1) -> 1 | F29: =IF(F30>$F$28,0,1) -> 1 | G29: 1 | H29: 1 | I29: 0 | J29: 0 | K29: 0 | L29: 0 | M29: 0 | N29: 0
C30: Temp.-ZR Reihenbildung | D30: Tn | E30: T1 | F30: T2 | G30: T3 | H30: T4 | I30: T5 | J30: T6 | K30: T7 | L30: T8 | M30: T9 | N30: T10 | O30: Art des Feldes
C31: Gewichtungsfaktoren (Temp.-ZR) | D31: g(Tn) | E31: =1-SUMPRODUCT(F29:N29,F31:N31) -> 0.5333 | F31: =ROUND(F32/$D$32,4) -> 0.2667 | G31: =ROUND(G32/$D$32,4) -> 0.1333 | H31: 0.0667 | I31: 0.0000 | J31: 0.0000 | K31: 0.0000 | L31: 0.0000 | M31: 0.0000 | N31: 0.0000
C32: Gewichte (Temp.-ZR) G(Tn) | D32: =SUMPRODUCT(E32:N32,E29:N29) -> 1.8750 | E32: 1.0000 | F32: 0.5000 | G32: 0.2500 | H32: 0.1250 | O32: Num. Wert
C33: Temperturzeitraum | D33: [d] | E33: D | F33: D-1 | G33: D-2 | H33: D-3 | O33: Auswahlfeld | R33: D | S33: D-1 | T33: D-2 | U33: D-3 | V33: D-4 | W33: D-5 | X33: D-6 | Y33: D-7 | Z33: D-8 | AA33: D-9 | AB33: D-10
C34: Tages-Bezug [Gastag/Kalendertag] | D34: [GT/KT] | E34: Gastag | F34: Gastag | G34: Gastag | H34: Gastag | O34: Auswahlfeld | R34: Gastag | S34: Kalendertag
C35: Zeitzone für Tages-Bezug | D35: [UCT/CET] | E35: CET/CEST | F35: CET/CEST | G35: CET/CEST | H35: CET/CEST | I35: CET/CEST | J35: CET/CEST | K35: CET/CEST | L35: CET/CEST | M35: CET/CEST | N35: CET/CEST | O35: Auswahlfeld | R35: CET/CEST | S35: UCT
C36: Art der Zeitreihe | D36: [IST/Prog] | E36: Temp.-Prog. | F36: Temp.-Prog. | G36: Temp.-IST | H36: Temp.-IST | O36: Auswahlfeld | R36: Temp.-IST | S36: Temp.-Prog.
C38: Erläuterung:
C39: für Betrachtungstag D | E39: T(Allokation) = T(gew. Stations-Temp) + DTKP
E40: T(gew. Stations-Temp.) = [TS1 • g(S1) + TS2 • g(S2) + TS3 • g(S3) + …. + TS10 • g(S10)]
E41: Summe(g(S1 …S10)) = [g(S1) + g(S2) + g(S3) + ... + g(S10)] = 1,000
E42: TSn(gew.Temp) = [T1 • g(T1) + T2 • g(T2) + T3 • g(T3) + …: + T10 • g(T10)]
E43: Summe(g(T1 …T10)) = [g(T1) + g(T2) + g(T3) + … + g(T10)] = 1,000
C45: Beispiel für Gewichte G(Tn):
C46: Eintages-Temp. (Vorhersagetemp.) | D46: G(Tn) | E46: 1.0000 | F46: 0.0000 | G46: 0.0000 | H46: 0.0000 | I46: 0.0000 | J46: …
C47: Geom.-Reihe (gem. LF-SLP) | D47: G(Tn) | E47: 1.0000 | F47: 0.5000 | G47: 0.2500 | H47: 0.1250 | I47: 0.0000 | J47: …
B50: b.) für Kundenwerttemperatur (auch für Misch-Kundenwerttemperatur [virt. Wetter-Station])
C52: Anzahl Station für Misch-Kundenwerttemperatur: | F52: =F18 -> 1
E53: =IF(E54>$F$52,0,1) -> 1 | F53: =IF(F54>$F$52,0,1) -> 0 | G53: 0 | H53: 0 | I53: 0 | J53: 0 | K53: 0 | L53: 0 | M53: 0 | N53: 0
C54: Temperaturstationen | D54: Sn | E54: Station S 1 | F54: Station S 2 | G54: Station S 3 | H54: Station S 4 | I54: Station S 5 | J54: Station S 6 | K54: Station S 7 | L54: Station S 8 | M54: Station S 9 | N54: Station S 10 | O54: Art des Feldes
C55: Gewichtungsfaktoren (Station) | D55: g(Sn) | E55: =1-SUMPRODUCT(F53:N53,F55:N55) -> 1.0000 | F55: =ROUND(F56/$D$56,4) -> 1.0000 | G55: =ROUND(G56/$D$56,4) -> 0.0000 | H55: 0.0000 | I55: 0.0000 | J55: 0.0000 | K55: 0.0000 | L55: 0.0000 | M55: 0.0000 | N55: 0.0000
C56: Gewichte (Station) G(Sn) | D56: =SUMPRODUCT(E56:N56,E53:N53) -> 1.000 | E56: =E22 -> 1.0000 | F56: =F22 -> 1.0000 | G56: 0.0000 | H56: 0.0000 | I56: 0.0000 | J56: 0.0000 | K56: 0.0000 | L56: 0.0000 | M56: 0.0000 | N56: 0.0000 | O56: Num. Wert
C57: Wetter-DL | E57: =E23 -> DWD | F57: =F23 -> DWD | G57: DWD | H57: DWD | I57: DWD | J57: DWD | K57: DWD | L57: DWD | M57: DWD | N57: DWD | O57: Auswahlfeld
C58: Name der Station | E58: =E24 -> Waghäusel | F58: =F24 -> DEF-St. | G58: 0 | H58: 0 | I58: 0 | J58: 0 | K58: 0 | L58: 0 | M58: 0 | N58: 0 | O58: Textfeld
C59: Stations-Nr. | E59: =E25 -> 5275 | F59: =F25 -> xxxxx | G59: 0 | H59: 0 | I59: 0 | J59: 0 | K59: 0 | L59: 0 | M59: 0 | N59: 0 | O59: Code
C60: Klima-Zeitreihe | E60: =E26 -> Temp. (2m) | F60: =F26 -> Temp. (2m) | G60: 0 | H60: 0 | I60: 0 | J60: 0 | K60: 0 | L60: 0 | M60: 0 | N60: 0 | O60: Auswahlfeld
C62: Anzahl Temperaturen für Zeitreihengewichtung: | F62: =F28 -> 4
E63: =IF(E64>$F$62,0,1) -> 1 | F63: =IF(F64>$F$62,0,1) -> 1 | G63: 1 | H63: 1 | I63: 0 | J63: 0 | K63: 0 | L63: 0 | M63: 0 | N63: 0
C64: Temp.-ZR Reihenbildung | D64: Tn | E64: T1 | F64: T2 | G64: T3 | H64: T4 | I64: T5 | J64: T6 | K64: T7 | L64: T8 | M64: T9 | N64: T10 | O64: Art des Feldes
C65: Gewichtungsfaktoren (Temp.-ZR) | D65: g(Tn) | E65: =1-SUMPRODUCT(F63:N63,F65:N65) -> 0.5333 | F65: =ROUND(F66/$D$66,4) -> 0.2667 | G65: =ROUND(G66/$D$66,4) -> 0.1333 | H65: 0.0667 | I65: 0.0000 | J65: 0.0000 | K65: 0.0000 | L65: 0.0000 | M65: 0.0000 | N65: 0.0000
C66: Gewichte (Temp.-ZR) G(Tn) | D66: =SUMPRODUCT(E66:N66,E63:N63) -> 1.875 | E66: =E32 -> 1.0000 | F66: =F32 -> 0.5000 | G66: 0.2500 | H66: 0.1250 | I66: 0.0000 | J66: 0.0000 | K66: 0.0000 | L66: 0.0000 | M66: 0.0000 | N66: 0.0000 | O66: Num. Wert
C67: Temperturzeitraum | D67: [d] | E67: =E33 -> D | F67: =F33 -> D-1 | G67: D-2 | H67: D-3 | I67: 0 | J67: 0 | K67: 0 | L67: 0 | M67: 0 | N67: 0 | O67: Auswahlfeld
C68: Tages-Bezug [Gastag/Kalendertag] | D68: [GT/KT] | E68: =E34 -> Gastag | F68: =F34 -> Gastag | G68: Gastag | H68: Gastag | I68: 0 | J68: 0 | K68: 0 | L68: 0 | M68: 0 | N68: 0 | O68: Auswahlfeld
C69: Zeitzone für Tages-Bezug | D69: [UCT/CET] | E69: =E35 -> CET/CEST | F69: =F35 -> CET/CEST | G69: CET/CEST | H69: CET/CEST | I69: CET/CEST | J69: CET/CEST | K69: CET/CEST | L69: CET/CEST | M69: CET/CEST | N69: CET/CEST | O69: Auswahlfeld
C70: Art der Zeitreihe | D70: [IST/Prog] | E70: Temp.-IST | F70: Temp.-IST | G70: =G36 -> Temp.-IST | H70: Temp.-IST | I70: 0 | J70: 0 | K70: 0 | L70: 0 | M70: 0 | N70: 0 | O70: Auswahlfeld
C72: Berechnung analog Allokationstemperatur (siehe Erläuterung)

Sheet SLP-Temp-Gebiet #02 (hidden)
B2: Bildungsregel Temperaturzeitreihe(n) - a.) Allokationstemperatur und b.) Kundenwerttemperatur
C4: Netzbetreiber: | E4: =Netzbetreiber!$D$9 -> Stadtwerke Walldof GmbH & Co. KG
C5: Netzgebiet: | E5: =Netzbetreiber!$D$28 -> Walldorf
C6: Marktpartner-ID: | E6: =Netzbetreiber!$D$11 -> 9870096700000
C7: gültig ab: | E7: =Netzbetreiber!$D$6 -> 2015-10-01
H8: Hinweis:
C9: Anzahl der Temperaturgebiete des Netzgebietes: | F9: ='SLP-Verfahren'!D46 -> 1 | H9: Bei mehreren Temperaturgebieten je Netzgebiet jeweils ein weiteres "Excel-Tabellenblatt" je
C10: Nummer des Temperaturgebietes: | F10: 2 | H10: Temperaturgebiet einfügen. Bitte SLP-Temp-Gebiet # "##" in Namen des Excel-Tabellenblattes aufnehmen.
C11: Name des Temperaturgebietes: | F11: =INDEX('SLP-Verfahren'!D48:D62,'SLP-Temp-Gebiet #02'!F10) -> 0
C13: Temperaturversatz (der Knickpunkt Temperatur) | F13: Tag: | G13: Monat: | H13: DTKP
C14: Heizperiode Kernzeit Winter | E14: Beginn: | F14: 15. | G14: Oktober | H14: +0.00 °C | O14: anderer Wetter-Dienstleister (falls verwendet): | R14: Januar | S14: Februar | T14: März | U14: April | V14: Mai | W14: Juni | X14: Juli | Y14: August | Z14: September | AA14: Oktober | AB14: November | AC14: Dezember
C15: Sommer-/Übergangsperiode | E15: Beginn: | F15: 1. | G15: März | H15: +0.00 °C | O15: Wetterdienstleister ABC | R15: 1. | S15: 2. | T15: 3. | U15: 4. | V15: 5. | W15: 6. | X15: 7. | Y15: 8. | Z15: 9. | AA15: 10. | AB15: 11. | AC15: 12. | AD15: 13. | AE15: 14. | AF15: 15. | AG15: 16. | AH15: 17. | AI15: 18. | AJ15: 19. | AK15: 20. | AL15: 21. | AM15: 22. | AN15: 23. | AO15: 24. | AP15: 25. | AQ15: 26. | AR15: 27. | AS15: 28. | AT15: 29. | AU15: 30. | AV15: 31.
B17: a.) für Allokationstemperatur (auch für Misch-Allokationstempertur [virt. Wetter-Station])
C18: Anzahl Stationen für Misch-Allokationstemperatur: | F18: 2
E19: =IF(E20>$F$18,0,1) -> 1 | F19: =IF(F20>$F$18,0,1) -> 1 | G19: 0 | H19: 0 | I19: 0 | J19: 0 | K19: 0 | L19: 0 | M19: 0 | N19: 0
C20: Temperaturstationen | D20: Sn | E20: Station S 1 | F20: Station S 2 | G20: Station S 3 | H20: Station S 4 | I20: Station S 5 | J20: Station S 6 | K20: Station S 7 | L20: Station S 8 | M20: Station S 9 | N20: Station S 10 | O20: Art des Feldes
C21: Gewichtungsfaktoren (Station) | D21: g(Sn) | E21: =1-SUMPRODUCT(F19:N19,F21:N21) -> 0.5000 | F21: =ROUND(F22/$D$22,4) -> 0.5000 | G21: =ROUND(G22/$D$22,4) -> 0.000 | H21: 0.000 | I21: 0.000 | J21: 0.000 | K21: 0.000 | L21: 0.000 | M21: 0.000 | N21: 0.000
C22: Gewichte (Station) G(Sn) | D22: =SUMPRODUCT(E22:N22,E19:N19) -> 2.000 | E22: 1.0000 | F22: 1.0000 | O22: Num. Wert
C23: Wetter-DL | E23: DWD | F23: DWD | G23: DWD | H23: DWD | I23: DWD | J23: DWD | K23: DWD | L23: DWD | M23: DWD | N23: DWD | O23: Auswahlfeld | R23: DWD | S23: MeteoGroup | T23: =O15 -> Wetterdienstleister ABC
C24: Name der Station | E24: ABC-St. | F24: DEF-St. | O24: Textfeld
C25: Stations-Nr. | E25: xxxxx | F25: xxxxx | O25: Code | R25: St.-Nr.
C26: Klima-Zeitreihe | E26: Temp. (2m) | F26: Temp. (2m) | O26: Auswahlfeld | R26: Temp. (2m) | S26: Sonstiges
C28: Anzahl Temperaturen für Zeitreihengewichtung: | F28: 4
E29: =IF(E30>$F$28,0,1) -> 1 | F29: =IF(F30>$F$28,0,1) -> 1 | G29: 1 | H29: 1 | I29: 0 | J29: 0 | K29: 0 | L29: 0 | M29: 0 | N29: 0
C30: Temp.-ZR Reihenbildung | D30: Tn | E30: T1 | F30: T2 | G30: T3 | H30: T4 | I30: T5 | J30: T6 | K30: T7 | L30: T8 | M30: T9 | N30: T10 | O30: Art des Feldes
C31: Gewichtungsfaktoren (Temp.-ZR) | D31: g(Tn) | E31: =1-SUMPRODUCT(F29:N29,F31:N31) -> 0.5333 | F31: =ROUND(F32/$D$32,4) -> 0.2667 | G31: =ROUND(G32/$D$32,4) -> 0.1333 | H31: 0.0667 | I31: 0.0000 | J31: 0.0000 | K31: 0.0000 | L31: 0.0000 | M31: 0.0000 | N31: 0.0000
C32: Gewichte (Temp.-ZR) G(Tn) | D32: =SUMPRODUCT(E32:N32,E29:N29) -> 1.8750 | E32: 1.0000 | F32: 0.5000 | G32: 0.2500 | H32: 0.1250 | O32: Num. Wert
C33: Temperturzeitraum | D33: [d] | E33: D | F33: D-1 | G33: D-2 | H33: D-3 | O33: Auswahlfeld | R33: D | S33: D-1 | T33: D-2 | U33: D-3 | V33: D-4 | W33: D-5 | X33: D-6 | Y33: D-7 | Z33: D-8 | AA33: D-9 | AB33: D-10
C34: Tages-Bezug [Gastag/Kalendertag] | D34: [GT/KT] | E34: Gastag | F34: Gastag | G34: Gastag | H34: Gastag | O34: Auswahlfeld | R34: Gastag | S34: Kalendertag
C35: Zeitzone für Tages-Bezug | D35: [UCT/CET] | E35: CET/CEST | F35: CET/CEST | G35: CET/CEST | H35: CET/CEST | I35: CET/CEST | J35: CET/CEST | K35: CET/CEST | L35: CET/CEST | M35: CET/CEST | N35: CET/CEST | O35: Auswahlfeld | R35: CET/CEST | S35: UCT
C36: Art der Zeitreihe | D36: [IST/Prog] | E36: Temp.-Prog. | F36: Temp.-Prog. | G36: Temp.-IST | H36: Temp.-IST | O36: Auswahlfeld | R36: Temp.-IST | S36: Temp.-Prog.
C38: Erläuterung:
C39: für Betrachtungstag D | E39: T(Allokation) = T(gew. Stations-Temp) + DTKP
E40: T(gew. Stations-Temp.) = [TS1 • g(S1) + TS2 • g(S2) + TS3 • g(S3) + …. + TS10 • g(S10)]
E41: Summe(g(S1 …S10)) = [g(S1) + g(S2) + g(S3) + ... + g(S10)] = 1,000
E42: TSn(gew.Temp) = [T1 • g(T1) + T2 • g(T2) + T3 • g(T3) + …: + T10 • g(T10)]
E43: Summe(g(T1 …T10)) = [g(T1) + g(T2) + g(T3) + … + g(T10)] = 1,000
C45: Beispiel für Gewichte G(Tn):
C46: Eintages-Temp. (Vorhersagetemp.) | D46: G(Tn) | E46: 1.0000 | F46: 0.0000 | G46: 0.0000 | H46: 0.0000 | I46: 0.0000 | J46: …
C47: Geom.-Reihe (gem. LF-SLP) | D47: G(Tn) | E47: 1.0000 | F47: 0.5000 | G47: 0.2500 | H47: 0.1250 | I47: 0.0000 | J47: …
B50: b.) für Kundenwerttemperatur (auch für Misch-Kundenwerttemperatur [virt. Wetter-Station])
C52: Anzahl Station für Misch-Kundenwerttemperatur: | F52: =F18 -> 2
E53: =IF(E54>$F$52,0,1) -> 1 | F53: =IF(F54>$F$52,0,1) -> 1 | G53: 0 | H53: 0 | I53: 0 | J53: 0 | K53: 0 | L53: 0 | M53: 0 | N53: 0
C54: Temperaturstationen | D54: Sn | E54: Station S 1 | F54: Station S 2 | G54: Station S 3 | H54: Station S 4 | I54: Station S 5 | J54: Station S 6 | K54: Station S 7 | L54: Station S 8 | M54: Station S 9 | N54: Station S 10 | O54: Art des Feldes
C55: Gewichtungsfaktoren (Station) | D55: g(Sn) | E55: =1-SUMPRODUCT(F53:N53,F55:N55) -> 0.5000 | F55: =ROUND(F56/$D$56,4) -> 0.5000 | G55: =ROUND(G56/$D$56,4) -> 0.0000 | H55: 0.0000 | I55: 0.0000 | J55: 0.0000 | K55: 0.0000 | L55: 0.0000 | M55: 0.0000 | N55: 0.0000
C56: Gewichte (Station) G(Sn) | D56: =SUMPRODUCT(E56:N56,E53:N53) -> 2.000 | E56: =E22 -> 1.0000 | F56: =F22 -> 1.0000 | G56: 0.0000 | H56: 0.0000 | I56: 0.0000 | J56: 0.0000 | K56: 0.0000 | L56: 0.0000 | M56: 0.0000 | N56: 0.0000 | O56: Num. Wert
C57: Wetter-DL | E57: =E23 -> DWD | F57: DWD | G57: DWD | H57: DWD | I57: DWD | J57: DWD | K57: DWD | L57: DWD | M57: DWD | N57: DWD | O57: Auswahlfeld
C58: Name der Station | E58: =E24 -> ABC-St. | F58: DEF-St. | G58: 0 | H58: 0 | I58: 0 | J58: 0 | K58: 0 | L58: 0 | M58: 0 | N58: 0 | O58: Textfeld
C59: Stations-Nr. | E59: =E25 -> xxxxx | F59: xxxxx | G59: 0 | H59: 0 | I59: 0 | J59: 0 | K59: 0 | L59: 0 | M59: 0 | N59: 0 | O59: Code
C60: Klima-Zeitreihe | E60: =E26 -> Temp. (2m) | F60: Temp. (2m) | G60: 0 | H60: 0 | I60: 0 | J60: 0 | K60: 0 | L60: 0 | M60: 0 | N60: 0 | O60: Auswahlfeld
C62: Anzahl Temperaturen für Zeitreihengewichtung: | F62: =F28 -> 4
E63: =IF(E64>$F$62,0,1) -> 1 | F63: =IF(F64>$F$62,0,1) -> 1 | G63: 1 | H63: 1 | I63: 0 | J63: 0 | K63: 0 | L63: 0 | M63: 0 | N63: 0
C64: Temp.-ZR Reihenbildung | D64: Tn | E64: T1 | F64: T2 | G64: T3 | H64: T4 | I64: T5 | J64: T6 | K64: T7 | L64: T8 | M64: T9 | N64: T10 | O64: Art des Feldes
C65: Gewichtungsfaktoren (Temp.-ZR) | D65: g(Tn) | E65: =1-SUMPRODUCT(F63:N63,F65:N65) -> 0.5333 | F65: =ROUND(F66/$D$66,4) -> 0.2667 | G65: =ROUND(G66/$D$66,4) -> 0.1333 | H65: 0.0667 | I65: 0.0000 | J65: 0.0000 | K65: 0.0000 | L65: 0.0000 | M65: 0.0000 | N65: 0.0000
C66: Gewichte (Temp.-ZR) G(Tn) | D66: =SUMPRODUCT(E66:N66,E63:N63) -> 1.875 | E66: =E32 -> 1.0000 | F66: =F32 -> 0.5000 | G66: 0.2500 | H66: 0.1250 | I66: 0.0000 | J66: 0.0000 | K66: 0.0000 | L66: 0.0000 | M66: 0.0000 | N66: 0.0000 | O66: Num. Wert
C67: Temperturzeitraum | D67: [d] | E67: =E33 -> D | F67: D-1 | G67: D-2 | H67: D-3 | I67: 0 | J67: 0 | K67: 0 | L67: 0 | M67: 0 | N67: 0 | O67: Auswahlfeld
C68: Tages-Bezug [Gastag/Kalendertag] | D68: [GT/KT] | E68: =E34 -> Gastag | F68: Gastag | G68: Gastag | H68: Gastag | I68: 0 | J68: 0 | K68: 0 | L68: 0 | M68: 0 | N68: 0 | O68: Auswahlfeld
C69: Zeitzone für Tages-Bezug | D69: [UCT/CET] | E69: =E35 -> CET/CEST | F69: CET/CEST | G69: CET/CEST | H69: CET/CEST | I69: CET/CEST | J69: CET/CEST | K69: CET/CEST | L69: CET/CEST | M69: CET/CEST | N69: CET/CEST | O69: Auswahlfeld
C70: Art der Zeitreihe | D70: [IST/Prog] | E70: Temp.-IST | F70: Temp.-IST | G70: Temp.-IST | H70: Temp.-IST | I70: 0 | J70: 0 | K70: 0 | L70: 0 | M70: 0 | N70: 0 | O70: Auswahlfeld
C72: Berechnung analog Allokationstemperatur (siehe Erläuterung)

Sheet SLP-Profile
B2: Verwendete SLP Profiltypen
B3: Hier sind alle vom Netzbetreiber im Netzgebiet verwendeten SLP-Profiltypen aufzuführen.
C5: Netzbetreiber: | D5: =Netzbetreiber!$D$9 -> Stadtwerke Walldof GmbH & Co. KG | J5: Hinweis: | K5: Profilnomenklaturen können in Zelle "E11" eingesehen werden. Doppelt hinterlegte Profile sind rot markiert
C6: Netzgebiet: | D6: =Netzbetreiber!$D$28 -> Walldorf | K6: Formeln/Koeffizienten zur Koeffizientenübernahme der BDEW-Profile können aus Zeile "11" übernommen werden
C7: Marktpartner-ID: | D7: =Netzbetreiber!$D$11 -> 9870096700000
C8: gültig ab: | D8: =Netzbetreiber!$D$6 -> 2015-10-01 | H8: Anzahl verwendeter Profile: | J8: =COUNTA(D12:D100) -> 13
F9: 2 | H9: 4 | I9: 5 | J9: 6 | K9: 7 | L9: 8 | M9: 9 | N9: 10 | O9: 11 | P9: 12 | Q9: 8 | R9: 3 | S9: 4 | T9: 5 | U9: 6 | V9: 7 | W9: 8 | X9: 9
B10: # | C10: Netzgebiet | D10: Profil-Art | E10: BDEW Nomen- klatur | F10: EDI-CODE | H10: A | I10: B | J10: C | K10: D | L10: ϑ0 | M10: mH | N10: bH | O10: mW | P10: bW | Q10: h(8°C) (FWT = 1) | R10: FWT (Mo.) | S10: FWT (Di.) | T10: FWT (Mi.) | U10: FWT (Do.) | V10: FWT (Fr.) | W10: FWT (Sa.) | X10: FWT (So.) | Y10: Multiplikator MSLP Umrechnungsfaktor: KW = JVP / MSLP
B11: Muster | C11: Abruf von BDEW-Standardwerten: | D11: BDEW | E11: DE_GKO34 | F11: =VLOOKUP($E11,'BDEW-Standard'!$B$3:$M$158,F$9,0) -> OK4 | H11: =ROUND(VLOOKUP($E11,'BDEW-Standard'!$B$3:$M$158,H$9,0),7) -> 1.4256684 | I11: =ROUND(VLOOKUP($E11,'BDEW-Standard'!$B$3:$M$158,I$9,0),7) -> -36.6590504 | J11: =ROUND(VLOOKUP($E11,'BDEW-Standard'!$B$3:$M$158,J$9,0),7) -> 7.6083226 | K11: =ROUND(VLOOKUP($E11,'BDEW-Standard'!$B$3:$M$158,K$9,0),7) -> 0.0371116 | L11: =ROUND(VLOOKUP($E11,'BDEW-Standard'!$B$3:$M$158,L$9,0),1) -> 40.0 | M11: =ROUND(VLOOKUP($E11,'BDEW-Standard'!$B$3:$M$158,M$9,0),7) -> -0.0809359 | N11: =ROUND(VLOOKUP($E11,'BDEW-Standard'!$B$3:$M$158,N$9,0),7) -> 1.2364527 | O11: =ROUND(VLOOKUP($E11,'BDEW-Standard'!$B$3:$M$158,O$9,0),7) -> -0.0007628 | P11: =ROUND(VLOOKUP($E11,'BDEW-Standard'!$B$3:$M$158,P$9,0),7) -> 0.1002979 | Q11: =($H11/(1+($I11/($Q$9-$L11))^$J11)+$K11)+MAX($M11*$Q$9+$N11,$O11*$Q$9+$P11) -> 1.00000 | R11: =ROUND(VLOOKUP(MID($E11,4,3),'Wochentag F(WT)'!$B$7:$J$22,R$9,0),4) -> 1.0354 | S11: =ROUND(VLOOKUP(MID($E11,4,3),'Wochentag F(WT)'!$B$7:$J$22,S$9,0),4) -> 1.0523 | T11: =ROUND(VLOOKUP(MID($E11,4,3),'Wochentag F(WT)'!$B$7:$J$22,T$9,0),4) -> 1.0449 | U11: =ROUND(VLOOKUP(MID($E11,4,3),'Wochentag F(WT)'!$B$7:$J$22,U$9,0),4) -> 1.0494 | V11: =ROUND(VLOOKUP(MID($E11,4,3),'Wochentag F(WT)'!$B$7:$J$22,V$9,0),4) -> 0.9885 | W11: =ROUND(VLOOKUP(MID($E11,4,3),'Wochentag F(WT)'!$B$7:$J$22,W$9,0),4) -> 0.8860 | X11: =7-SUM(R11:W11) -> 0.9435 | Y11: 365.123
B12: 1 | C12: =$D$6 -> Walldorf | D12: BDEW | E12: BW_HEF04 | F12: =VLOOKUP($E12,'BDEW-Standard'!$B$3:$M$158,F$9,0) -> W14 | H12: =ROUND(VLOOKUP($E12,'BDEW-Standard'!$B$3:$M$158,H$9,0),7) -> 3.1764404 | I12: =ROUND(VLOOKUP($E12,'BDEW-Standard'!$B$3:$M$158,I$9,0),7) -> -37.4105832 | J12: =ROUND(VLOOKUP($E12,'BDEW-Standard'!$B$3:$M$158,J$9,0),7) -> 6.1622336 | K12: =ROUND(VLOOKUP($E12,'BDEW-Standard'!$B$3:$M$158,K$9,0),7) -> 0.0759377 | L12: =ROUND(VLOOKUP($E12,'BDEW-Standard'!$B$3:$M$158,L$9,0),1) -> 40.0 | M12: =ROUND(VLOOKUP($E12,'BDEW-Standard'!$B$3:$M$158,M$9,0),7) -> 0 | N12: =ROUND(VLOOKUP($E12,'BDEW-Standard'!$B$3:$M$158,N$9,0),7) -> 0 | O12: =ROUND(VLOOKUP($E12,'BDEW-Standard'!$B$3:$M$158,O$9,0),7) -> 0 | P12: =ROUND(VLOOKUP($E12,'BDEW-Standard'!$B$3:$M$158,P$9,0),7) -> 0 | Q12: =($H12/(1+($I12/($Q$9-$L12))^$J12)+$K12)+MAX($M12*$Q$9+$N12,$O12*$Q$9+$P12) -> 0.95374 | R12: =ROUND(VLOOKUP(MID($E12,4,3),'Wochentag F(WT)'!$B$7:$J$22,R$9,0),4) -> 1.0000 | S12: =ROUND(VLOOKUP(MID($E12,4,3),'Wochentag F(WT)'!$B$7:$J$22,S$9,0),4) -> 1.0000 | T12: =ROUND(VLOOKUP(MID($E12,4,3),'Wochentag F(WT)'!$B$7:$J$22,T$9,0),4) -> 1.0000 | U12: =ROUND(VLOOKUP(MID($E12,4,3),'Wochentag F(WT)'!$B$7:$J$22,U$9,0),4) -> 1.0000 | V12: =ROUND(VLOOKUP(MID($E12,4,3),'Wochentag F(WT)'!$B$7:$J$22,V$9,0),4) -> 1.0000 | W12: =ROUND(VLOOKUP(MID($E12,4,3),'Wochentag F(WT)'!$B$7:$J$22,W$9,0),4) -> 1.0000 | X12: =7-SUM(R12:W12) -> 1.0000
B13: 2 | C13: Walldorf | D13: BDEW | E13: BW_HMF04 | F13: =VLOOKUP($E13,'BDEW-Standard'!$B$3:$M$158,F$9,0) -> W24 | H13: =ROUND(VLOOKUP($E13,'BDEW-Standard'!$B$3:$M$158,H$9,0),7) -> 2.5078170 | I13: =ROUND(VLOOKUP($E13,'BDEW-Standard'!$B$3:$M$158,I$9,0),7) -> -35.0367363 | J13: =ROUND(VLOOKUP($E13,'BDEW-Standard'!$B$3:$M$158,J$9,0),7) -> 6.2430159 | K13: =ROUND(VLOOKUP($E13,'BDEW-Standard'!$B$3:$M$158,K$9,0),7) -> 0.1025195 | L13: =ROUND(VLOOKUP($E13,'BDEW-Standard'!$B$3:$M$158,L$9,0),1) -> 40.0 | M13: =ROUND(VLOOKUP($E13,'BDEW-Standard'!$B$3:$M$158,M$9,0),7) -> 0 | N13: =ROUND(VLOOKUP($E13,'BDEW-Standard'!$B$3:$M$158,N$9,0),7) -> 0 | O13: =ROUND(VLOOKUP($E13,'BDEW-Standard'!$B$3:$M$158,O$9,0),7) -> 0 | P13: =ROUND(VLOOKUP($E13,'BDEW-Standard'!$B$3:$M$158,P$9,0),7) -> 0 | Q13: 1.01075 | R13: =ROUND(VLOOKUP(MID($E13,4,3),'Wochentag F(WT)'!$B$7:$J$22,R$9,0),4) -> 1.0000 | S13: =ROUND(VLOOKUP(MID($E13,4,3),'Wochentag F(WT)'!$B$7:$J$22,S$9,0),4) -> 1.0000 | T13: =ROUND(VLOOKUP(MID($E13,4,3),'Wochentag F(WT)'!$B$7:$J$22,T$9,0),4) -> 1.0000 | U13: =ROUND(VLOOKUP(MID($E13,4,3),'Wochentag F(WT)'!$B$7:$J$22,U$9,0),4) -> 1.0000 | V13: =ROUND(VLOOKUP(MID($E13,4,3),'Wochentag F(WT)'!$B$7:$J$22,V$9,0),4) -> 1.0000 | W13: =ROUND(VLOOKUP(MID($E13,4,3),'Wochentag F(WT)'!$B$7:$J$22,W$9,0),4) -> 1.0000 | X13: =7-SUM(R13:W13) -> 1.0000
B14: 3 | C14: Walldorf | D14: BDEW | E14: DE_GMK04 | F14: =VLOOKUP($E14,'BDEW-Standard'!$B$3:$M$158,F$9,0) -> MK4 | H14: =ROUND(VLOOKUP($E14,'BDEW-Standard'!$B$3:$M$158,H$9,0),7) -> 3.1177248 | I14: =ROUND(VLOOKUP($E14,'BDEW-Standard'!$B$3:$M$158,I$9,0),7) -> -35.8715062 | J14: =ROUND(VLOOKUP($E14,'BDEW-Standard'!$B$3:$M$158,J$9,0),7) -> 7.5186829 | K14: =ROUND(VLOOKUP($E14,'BDEW-Standard'!$B$3:$M$158,K$9,0),7) -> 0.0343301 | L14: =ROUND(VLOOKUP($E14,'BDEW-Standard'!$B$3:$M$158,L$9,0),1) -> 40.0 | M14: =ROUND(VLOOKUP($E14,'BDEW-Standard'!$B$3:$M$158,M$9,0),7) -> 0 | N14: =ROUND(VLOOKUP($E14,'BDEW-Standard'!$B$3:$M$158,N$9,0),7) -> 0 | O14: =ROUND(VLOOKUP($E14,'BDEW-Standard'!$B$3:$M$158,O$9,0),7) -> 0 | P14: =ROUND(VLOOKUP($E14,'BDEW-Standard'!$B$3:$M$158,P$9,0),7) -> 0 | Q14: 0.96221 | R14: =ROUND(VLOOKUP(MID($E14,4,3),'Wochentag F(WT)'!$B$7:$J$22,R$9,0),4) -> 1.0699 | S14: =ROUND(VLOOKUP(MID($E14,4,3),'Wochentag F(WT)'!$B$7:$J$22,S$9,0),4) -> 1.0365 | T14: =ROUND(VLOOKUP(MID($E14,4,3),'Wochentag F(WT)'!$B$7:$J$22,T$9,0),4) -> 0.9933 | U14: =ROUND(VLOOKUP(MID($E14,4,3),'Wochentag F(WT)'!$B$7:$J$22,U$9,0),4) -> 0.9948 | V14: =ROUND(VLOOKUP(MID($E14,4,3),'Wochentag F(WT)'!$B$7:$J$22,V$9,0),4) -> 1.0659 | W14: =ROUND(VLOOKUP(MID($E14,4,3),'Wochentag F(WT)'!$B$7:$J$22,W$9,0),4) -> 0.9362 | X14: 0.9034
B15: 4 | C15: Walldorf | D15: BDEW | E15: DE_GHA04 | F15: =VLOOKUP($E15,'BDEW-Standard'!$B$3:$M$158,F$9,0) -> HA4 | H15: =ROUND(VLOOKUP($E15,'BDEW-Standard'!$B$3:$M$158,H$9,0),7) -> 4.0196902 | I15: =ROUND(VLOOKUP($E15,'BDEW-Standard'!$B$3:$M$158,I$9,0),7) -> -37.8282037 | J15: =ROUND(VLOOKUP($E15,'BDEW-Standard'!$B$3:$M$158,J$9,0),7) -> 8.1593369 | K15: =ROUND(VLOOKUP($E15,'BDEW-Standard'!$B$3:$M$158,K$9,0),7) -> 0.0472845 | L15: =ROUND(VLOOKUP($E15,'BDEW-Standard'!$B$3:$M$158,L$9,0),1) -> 40.0 | M15: =ROUND(VLOOKUP($E15,'BDEW-Standard'!$B$3:$M$158,M$9,0),7) -> 0 | N15: =ROUND(VLOOKUP($E15,'BDEW-Standard'!$B$3:$M$158,N$9,0),7) -> 0 | O15: =ROUND(VLOOKUP($E15,'BDEW-Standard'!$B$3:$M$158,O$9,0),7) -> 0 | P15: =ROUND(VLOOKUP($E15,'BDEW-Standard'!$B$3:$M$158,P$9,0),7) -> 0 | Q15: 0.86487 | R15: =ROUND(VLOOKUP(MID($E15,4,3),'Wochentag F(WT)'!$B$7:$J$22,R$9,0),4) -> 1.0358 | S15: =ROUND(VLOOKUP(MID($E15,4,3),'Wochentag F(WT)'!$B$7:$J$22,S$9,0),4) -> 1.0232 | T15: =ROUND(VLOOKUP(MID($E15,4,3),'Wochentag F(WT)'!$B$7:$J$22,T$9,0),4) -> 1.0252 | U15: =ROUND(VLOOKUP(MID($E15,4,3),'Wochentag F(WT)'!$B$7:$J$22,U$9,0),4) -> 1.0295 | V15: =ROUND(VLOOKUP(MID($E15,4,3),'Wochentag F(WT)'!$B$7:$J$22,V$9,0),4) -> 1.0253 | W15: =ROUND(VLOOKUP(MID($E15,4,3),'Wochentag F(WT)'!$B$7:$J$22,W$9,0),4) -> 0.9675 | X15: 0.8935
B16: 5 | C16: Walldorf | D16: BDEW | E16: DE_GKO04 | F16: =VLOOKUP($E16,'BDEW-Standard'!$B$3:$M$158,F$9,0) -> KO4 | H16: =ROUND(VLOOKUP($E16,'BDEW-Standard'!$B$3:$M$158,H$9,0),7) -> 3.4428943 | I16: =ROUND(VLOOKUP($E16,'BDEW-Standard'!$B$3:$M$158,I$9,0),7) -> -36.6590504 | J16: =ROUND(VLOOKUP($E16,'BDEW-Standard'!$B$3:$M$158,J$9,0),7) -> 7.6083226 | K16: =ROUND(VLOOKUP($E16,'BDEW-Standard'!$B$3:$M$158,K$9,0),7) -> 0.0746850 | L16: =ROUND(VLOOKUP($E16,'BDEW-Standard'!$B$3:$M$158,L$9,0),1) -> 40.0 | M16: =ROUND(VLOOKUP($E16,'BDEW-Standard'!$B$3:$M$158,M$9,0),7) -> 0 | N16: =ROUND(VLOOKUP($E16,'BDEW-Standard'!$B$3:$M$158,N$9,0),7) -> 0 | O16: =ROUND(VLOOKUP($E16,'BDEW-Standard'!$B$3:$M$158,O$9,0),7) -> 0 | P16: =ROUND(VLOOKUP($E16,'BDEW-Standard'!$B$3:$M$158,P$9,0),7) -> 0 | Q16: 0.97768 | R16: =ROUND(VLOOKUP(MID($E16,4,3),'Wochentag F(WT)'!$B$7:$J$22,R$9,0),4) -> 1.0354 | S16: =ROUND(VLOOKUP(MID($E16,4,3),'Wochentag F(WT)'!$B$7:$J$22,S$9,0),4) -> 1.0523 | T16: =ROUND(VLOOKUP(MID($E16,4,3),'Wochentag F(WT)'!$B$7:$J$22,T$9,0),4) -> 1.0449 | U16: =ROUND(VLOOKUP(MID($E16,4,3),'Wochentag F(WT)'!$B$7:$J$22,U$9,0),4) -> 1.0494 | V16: =ROUND(VLOOKUP(MID($E16,4,3),'Wochentag F(WT)'!$B$7:$J$22,V$9,0),4) -> 0.9885 | W16: =ROUND(VLOOKUP(MID($E16,4,3),'Wochentag F(WT)'!$B$7:$J$22,W$9,0),4) -> 0.8860 | X16: 0.9435
B17: 6 | C17: Walldorf | D17: BDEW | E17: DE_GBD04 | F17: =VLOOKUP($E17,'BDEW-Standard'!$B$3:$M$158,F$9,0) -> BD4 | H17: =ROUND(VLOOKUP($E17,'BDEW-Standard'!$B$3:$M$158,H$9,0),7) -> 3.7500000 | I17: =ROUND(VLOOKUP($E17,'BDEW-Standard'!$B$3:$M$158,I$9,0),7) -> -37.5000000 | J17: =ROUND(VLOOKUP($E17,'BDEW-Standard'!$B$3:$M$158,J$9,0),7) -> 6.8000000 | K17: =ROUND(VLOOKUP($E17,'BDEW-Standard'!$B$3:$M$158,K$9,0),7) -> 0.0609113 | L17: =ROUND(VLOOKUP($E17,'BDEW-Standard'!$B$3:$M$158,L$9,0),1) -> 40.0 | M17: =ROUND(VLOOKUP($E17,'BDEW-Standard'!$B$3:$M$158,M$9,0),7) -> 0 | N17: =ROUND(VLOOKUP($E17,'BDEW-Standard'!$B$3:$M$158,N$9,0),7) -> 0 | O17: =ROUND(VLOOKUP($E17,'BDEW-Standard'!$B$3:$M$158,O$9,0),7) -> 0 | P17: =ROUND(VLOOKUP($E17,'BDEW-Standard'!$B$3:$M$158,P$9,0),7) -> 0 | Q17: 1.01261 | R17: =ROUND(VLOOKUP(MID($E17,4,3),'Wochentag F(WT)'!$B$7:$J$22,R$9,0),4) -> 1.1052 | S17: =ROUND(VLOOKUP(MID($E17,4,3),'Wochentag F(WT)'!$B$7:$J$22,S$9,0),4) -> 1.0857 | T17: =ROUND(VLOOKUP(MID($E17,4,3),'Wochentag F(WT)'!$B$7:$J$22,T$9,0),4) -> 1.0378 | U17: =ROUND(VLOOKUP(MID($E17,4,3),'Wochentag F(WT)'!$B$7:$J$22,U$9,0),4) -> 1.0622 | V17: =ROUND(VLOOKUP(MID($E17,4,3),'Wochentag F(WT)'!$B$7:$J$22,V$9,0),4) -> 1.0266 | W17: =ROUND(VLOOKUP(MID($E17,4,3),'Wochentag F(WT)'!$B$7:$J$22,W$9,0),4) -> 0.7629 | X17: 0.9196
B18: 7 | C18: Walldorf | D18: BDEW | E18: DE_GGA04 | F18: =VLOOKUP($E18,'BDEW-Standard'!$B$3:$M$158,F$9,0) -> GA4 | H18: =ROUND(VLOOKUP($E18,'BDEW-Standard'!$B$3:$M$158,H$9,0),7) -> 2.8195656 | I18: =ROUND(VLOOKUP($E18,'BDEW-Standard'!$B$3:$M$158,I$9,0),7) -> -36.0000000 | J18: =ROUND(VLOOKUP($E18,'BDEW-Standard'!$B$3:$M$158,J$9,0),7) -> 7.7368518 | K18: =ROUND(VLOOKUP($E18,'BDEW-Standard'!$B$3:$M$158,K$9,0),7) -> 0.1572810 | L18: =ROUND(VLOOKUP($E18,'BDEW-Standard'!$B$3:$M$158,L$9,0),1) -> 40.0 | M18: =ROUND(VLOOKUP($E18,'BDEW-Standard'!$B$3:$M$158,M$9,0),7) -> 0 | N18: =ROUND(VLOOKUP($E18,'BDEW-Standard'!$B$3:$M$158,N$9,0),7) -> 0 | O18: =ROUND(VLOOKUP($E18,'BDEW-Standard'!$B$3:$M$158,O$9,0),7) -> 0 | P18: =ROUND(VLOOKUP($E18,'BDEW-Standard'!$B$3:$M$158,P$9,0),7) -> 0 | Q18: 0.96576 | R18: =ROUND(VLOOKUP(MID($E18,4,3),'Wochentag F(WT)'!$B$7:$J$22,R$9,0),4) -> 0.9322 | S18: =ROUND(VLOOKUP(MID($E18,4,3),'Wochentag F(WT)'!$B$7:$J$22,S$9,0),4) -> 0.9894 | T18: =ROUND(VLOOKUP(MID($E18,4,3),'Wochentag F(WT)'!$B$7:$J$22,T$9,0),4) -> 1.0033 | U18: =ROUND(VLOOKUP(MID($E18,4,3),'Wochentag F(WT)'!$B$7:$J$22,U$9,0),4) -> 1.0109 | V18: =ROUND(VLOOKUP(MID($E18,4,3),'Wochentag F(WT)'!$B$7:$J$22,V$9,0),4) -> 1.0180 | W18: =ROUND(VLOOKUP(MID($E18,4,3),'Wochentag F(WT)'!$B$7:$J$22,W$9,0),4) -> 1.0356 | X18: 1.0106
B19: 8 | C19: Walldorf | D19: BDEW | E19: DE_GBH04 | F19: =VLOOKUP($E19,'BDEW-Standard'!$B$3:$M$158,F$9,0) -> BH4 | H19: =ROUND(VLOOKUP($E19,'BDEW-Standard'!$B$3:$M$158,H$9,0),7) -> 2.4595181 | I19: =ROUND(VLOOKUP($E19,'BDEW-Standard'!$B$3:$M$158,I$9,0),7) -> -35.2532124 | J19: =ROUND(VLOOKUP($E19,'BDEW-Standard'!$B$3:$M$158,J$9,0),7) -> 6.0587001 | K19: =ROUND(VLOOKUP($E19,'BDEW-Standard'!$B$3:$M$158,K$9,0),7) -> 0.1647370 | L19: =ROUND(VLOOKUP($E19,'BDEW-Standard'!$B$3:$M$158,L$9,0),1) -> 40.0 | M19: =ROUND(VLOOKUP($E19,'BDEW-Standard'!$B$3:$M$158,M$9,0),7) -> 0 | N19: =ROUND(VLOOKUP($E19,'BDEW-Standard'!$B$3:$M$158,N$9,0),7) -> 0 | O19: =ROUND(VLOOKUP($E19,'BDEW-Standard'!$B$3:$M$158,O$9,0),7) -> 0 | P19: =ROUND(VLOOKUP($E19,'BDEW-Standard'!$B$3:$M$158,P$9,0),7) -> 0 | Q19: 1.04380 | R19: =ROUND(VLOOKUP(MID($E19,4,3),'Wochentag F(WT)'!$B$7:$J$22,R$9,0),4) -> 0.9767 | S19: =ROUND(VLOOKUP(MID($E19,4,3),'Wochentag F(WT)'!$B$7:$J$22,S$9,0),4) -> 1.0389 | T19: =ROUND(VLOOKUP(MID($E19,4,3),'Wochentag F(WT)'!$B$7:$J$22,T$9,0),4) -> 1.0028 | U19: =ROUND(VLOOKUP(MID($E19,4,3),'Wochentag F(WT)'!$B$7:$J$22,U$9,0),4) -> 1.0162 | V19: =ROUND(VLOOKUP(MID($E19,4,3),'Wochentag F(WT)'!$B$7:$J$22,V$9,0),4) -> 1.0024 | W19: =ROUND(VLOOKUP(MID($E19,4,3),'Wochentag F(WT)'!$B$7:$J$22,W$9,0),4) -> 1.0043 | X19: 0.9587
B20: 9 | C20: Walldorf | D20: BDEW | E20: DE_GWA04 | F20: =VLOOKUP($E20,'BDEW-Standard'!$B$3:$M$158,F$9,0) -> WA4 | H20: =ROUND(VLOOKUP($E20,'BDEW-Standard'!$B$3:$M$158,H$9,0),7) -> 1.0535875 | I20: =ROUND(VLOOKUP($E20,'BDEW-Standard'!$B$3:$M$158,I$9,0),7) -> -35.3000000 | J20: =ROUND(VLOOKUP($E20,'BDEW-Standard'!$B$3:$M$158,J$9,0),7) -> 4.8662747 | K20: =ROUND(VLOOKUP($E20,'BDEW-Standard'!$B$3:$M$158,K$9,0),7) -> 0.6811042 | L20: =ROUND(VLOOKUP($E20,'BDEW-Standard'!$B$3:$M$158,L$9,0),1) -> 40.0 | M20: =ROUND(VLOOKUP($E20,'BDEW-Standard'!$B$3:$M$158,M$9,0),7) -> 0 | N20: =ROUND(VLOOKUP($E20,'BDEW-Standard'!$B$3:$M$158,N$9,0),7) -> 0 | O20: =ROUND(VLOOKUP($E20,'BDEW-Standard'!$B$3:$M$158,O$9,0),7) -> 0 | P20: =ROUND(VLOOKUP($E20,'BDEW-Standard'!$B$3:$M$158,P$9,0),7) -> 0 | Q20: 1.08443 | R20: =ROUND(VLOOKUP(MID($E20,4,3),'Wochentag F(WT)'!$B$7:$J$22,R$9,0),4) -> 1.2457 | S20: =ROUND(VLOOKUP(MID($E20,4,3),'Wochentag F(WT)'!$B$7:$J$22,S$9,0),4) -> 1.2615 | T20: =ROUND(VLOOKUP(MID($E20,4,3),'Wochentag F(WT)'!$B$7:$J$22,T$9,0),4) -> 1.2707 | U20: =ROUND(VLOOKUP(MID($E20,4,3),'Wochentag F(WT)'!$B$7:$J$22,U$9,0),4) -> 1.2430 | V20: =ROUND(VLOOKUP(MID($E20,4,3),'Wochentag F(WT)'!$B$7:$J$22,V$9,0),4) -> 1.1276 | W20: =ROUND(VLOOKUP(MID($E20,4,3),'Wochentag F(WT)'!$B$7:$J$22,W$9,0),4) -> 0.3877 | X20: 0.4638
B21: 10 | C21: Walldorf | D21: BDEW | E21: DE_GGB04 | F21: =VLOOKUP($E21,'BDEW-Standard'!$B$3:$M$158,F$9,0) -> GB4 | H21: =ROUND(VLOOKUP($E21,'BDEW-Standard'!$B$3:$M$158,H$9,0),7) -> 3.6017736 | I21: =ROUND(VLOOKUP($E21,'BDEW-Standard'!$B$3:$M$158,I$9,0),7) -> -37.8825368 | J21: =ROUND(VLOOKUP($E21,'BDEW-Standard'!$B$3:$M$158,J$9,0),7) -> 6.9836070 | K21: =ROUND(VLOOKUP($E21,'BDEW-Standard'!$B$3:$M$158,K$9,0),7) -> 0.0548262 | L21: =ROUND(VLOOKUP($E21,'BDEW-Standard'!$B$3:$M$158,L$9,0),1) -> 40.0 | M21: =ROUND(VLOOKUP($E21,'BDEW-Standard'!$B$3:$M$158,M$9,0),7) -> 0 | N21: =ROUND(VLOOKUP($E21,'BDEW-Standard'!$B$3:$M$158,N$9,0),7) -> 0 | O21: =ROUND(VLOOKUP($E21,'BDEW-Standard'!$B$3:$M$158,O$9,0),7) -> 0 | P21: =ROUND(VLOOKUP($E21,'BDEW-Standard'!$B$3:$M$158,P$9,0),7) -> 0 | Q21: 0.90239 | R21: =ROUND(VLOOKUP(MID($E21,4,3),'Wochentag F(WT)'!$B$7:$J$22,R$9,0),4) -> 0.9897 | S21: =ROUND(VLOOKUP(MID($E21,4,3),'Wochentag F(WT)'!$B$7:$J$22,S$9,0),4) -> 0.9627 | T21: =ROUND(VLOOKUP(MID($E21,4,3),'Wochentag F(WT)'!$B$7:$J$22,T$9,0),4) -> 1.0507 | U21: =ROUND(VLOOKUP(MID($E21,4,3),'Wochentag F(WT)'!$B$7:$J$22,U$9,0),4) -> 1.0552 | V21: =ROUND(VLOOKUP(MID($E21,4,3),'Wochentag F(WT)'!$B$7:$J$22,V$9,0),4) -> 1.0297 | W21: =ROUND(VLOOKUP(MID($E21,4,3),'Wochentag F(WT)'!$B$7:$J$22,W$9,0),4) -> 0.9767 | X21: 0.9353
B22: 11 | C22: Walldorf | D22: BDEW | E22: DE_GBA04 | F22: =VLOOKUP($E22,'BDEW-Standard'!$B$3:$M$158,F$9,0) -> BA4 | H22: =ROUND(VLOOKUP($E22,'BDEW-Standard'!$B$3:$M$158,H$9,0),7) -> 0.9315889 | I22: =ROUND(VLOOKUP($E22,'BDEW-Standard'!$B$3:$M$158,I$9,0),7) -> -33.3500000 | J22: =ROUND(VLOOKUP($E22,'BDEW-Standard'!$B$3:$M$158,J$9,0),7) -> 5.7212303 | K22: =ROUND(VLOOKUP($E22,'BDEW-Standard'!$B$3:$M$158,K$9,0),7) -> 0.6656494 | L22: =ROUND(VLOOKUP($E22,'BDEW-Standard'!$B$3:$M$158,L$9,0),1) -> 40.0 | M22: =ROUND(VLOOKUP($E22,'BDEW-Standard'!$B$3:$M$158,M$9,0),7) -> 0 | N22: =ROUND(VLOOKUP($E22,'BDEW-Standard'!$B$3:$M$158,N$9,0),7) -> 0 | O22: =ROUND(VLOOKUP($E22,'BDEW-Standard'!$B$3:$M$158,O$9,0),7) -> 0 | P22: =ROUND(VLOOKUP($E22,'BDEW-Standard'!$B$3:$M$158,P$9,0),7) -> 0 | Q22: 1.07664 | R22: =ROUND(VLOOKUP(MID($E22,4,3),'Wochentag F(WT)'!$B$7:$J$22,R$9,0),4) -> 1.0848 | S22: =ROUND(VLOOKUP(MID($E22,4,3),'Wochentag F(WT)'!$B$7:$J$22,S$9,0),4) -> 1.1211 | T22: =ROUND(VLOOKUP(MID($E22,4,3),'Wochentag F(WT)'!$B$7:$J$22,T$9,0),4) -> 1.0769 | U22: =ROUND(VLOOKUP(MID($E22,4,3),'Wochentag F(WT)'!$B$7:$J$22,U$9,0),4) -> 1.1353 | V22: =ROUND(VLOOKUP(MID($E22,4,3),'Wochentag F(WT)'!$B$7:$J$22,V$9,0),4) -> 1.1402 | W22: =ROUND(VLOOKUP(MID($E22,4,3),'Wochentag F(WT)'!$B$7:$J$22,W$9,0),4) -> 0.4852 | X22: 0.9565
B23: 12 | C23: Walldorf | D23: BDEW | E23: DE_GPD04 | F23: =VLOOKUP($E23,'BDEW-Standard'!$B$3:$M$158,F$9,0) -> PD4 | H23: =ROUND(VLOOKUP($E23,'BDEW-Standard'!$B$3:$M$158,H$9,0),7) -> 3.8500000 | I23: =ROUND(VLOOKUP($E23,'BDEW-Standard'!$B$3:$M$158,I$9,0),7) -> -37.0000000 | J23: =ROUND(VLOOKUP($E23,'BDEW-Standard'!$B$3:$M$158,J$9,0),7) -> 10.2405021 | K23: =ROUND(VLOOKUP($E23,'BDEW-Standard'!$B$3:$M$158,K$9,0),7) -> 0.0469243 | L23: =ROUND(VLOOKUP($E23,'BDEW-Standard'!$B$3:$M$158,L$9,0),1) -> 40.0 | M23: =ROUND(VLOOKUP($E23,'BDEW-Standard'!$B$3:$M$158,M$9,0),7) -> 0 | N23: =ROUND(VLOOKUP($E23,'BDEW-Standard'!$B$3:$M$158,N$9,0),7) -> 0 | O23: =ROUND(VLOOKUP($E23,'BDEW-Standard'!$B$3:$M$158,O$9,0),7) -> 0 | P23: =ROUND(VLOOKUP($E23,'BDEW-Standard'!$B$3:$M$158,P$9,0),7) -> 0 | Q23: 0.75691 | R23: =ROUND(VLOOKUP(MID($E23,4,3),'Wochentag F(WT)'!$B$7:$J$22,R$9,0),4) -> 1.0214 | S23: =ROUND(VLOOKUP(MID($E23,4,3),'Wochentag F(WT)'!$B$7:$J$22,S$9,0),4) -> 1.0866 | T23: =ROUND(VLOOKUP(MID($E23,4,3),'Wochentag F(WT)'!$B$7:$J$22,T$9,0),4) -> 1.0720 | U23: =ROUND(VLOOKUP(MID($E23,4,3),'Wochentag F(WT)'!$B$7:$J$22,U$9,0),4) -> 1.0557 | V23: =ROUND(VLOOKUP(MID($E23,4,3),'Wochentag F(WT)'!$B$7:$J$22,V$9,0),4) -> 1.0117 | W23: =ROUND(VLOOKUP(MID($E23,4,3),'Wochentag F(WT)'!$B$7:$J$22,W$9,0),4) -> 0.9001 | X23: 0.8525
B24: 13 | C24: Walldorf | D24: BDEW | E24: DE_GMF04 | F24: =VLOOKUP($E24,'BDEW-Standard'!$B$3:$M$158,F$9,0) -> MF4 | H24: =ROUND(VLOOKUP($E24,'BDEW-Standard'!$B$3:$M$158,H$9,0),7) -> 2.5187775 | I24: =ROUND(VLOOKUP($E24,'BDEW-Standard'!$B$3:$M$158,I$9,0),7) -> -35.0333754 | J24: =ROUND(VLOOKUP($E24,'BDEW-Standard'!$B$3:$M$158,J$9,0),7) -> 6.2240634 | K24: =ROUND(VLOOKUP($E24,'BDEW-Standard'!$B$3:$M$158,K$9,0),7) -> 0.1010782 | L24: =ROUND(VLOOKUP($E24,'BDEW-Standard'!$B$3:$M$158,L$9,0),1) -> 40.0 | M24: =ROUND(VLOOKUP($E24,'BDEW-Standard'!$B$3:$M$158,M$9,0),7) -> 0 | N24: =ROUND(VLOOKUP($E24,'BDEW-Standard'!$B$3:$M$158,N$9,0),7) -> 0 | O24: =ROUND(VLOOKUP($E24,'BDEW-Standard'!$B$3:$M$158,O$9,0),7) -> 0 | P24: =ROUND(VLOOKUP($E24,'BDEW-Standard'!$B$3:$M$158,P$9,0),7) -> 0 | Q24: 1.01463 | R24: =ROUND(VLOOKUP(MID($E24,4,3),'Wochentag F(WT)'!$B$7:$J$22,R$9,0),4) -> 1.0354 | S24: =ROUND(VLOOKUP(MID($E24,4,3),'Wochentag F(WT)'!$B$7:$J$22,S$9,0),4) -> 1.0523 | T24: =ROUND(VLOOKUP(MID($E24,4,3),'Wochentag F(WT)'!$B$7:$J$22,T$9,0),4) -> 1.0449 | U24: =ROUND(VLOOKUP(MID($E24,4,3),'Wochentag F(WT)'!$B$7:$J$22,U$9,0),4) -> 1.0494 | V24: =ROUND(VLOOKUP(MID($E24,4,3),'Wochentag F(WT)'!$B$7:$J$22,V$9,0),4) -> 0.9885 | W24: =ROUND(VLOOKUP(MID($E24,4,3),'Wochentag F(WT)'!$B$7:$J$22,W$9,0),4) -> 0.8860 | X24: 0.9435
B25: 14 | C25: Walldorf
B26: 15 | C26: Walldorf
B27: 16 | C27: Walldorf
B28: 17 | C28: Walldorf
B29: 18 | C29: Walldorf
B30: 19 | C30: Walldorf
B31: 20 | C31: Walldorf
B32: 21 | C32: Walldorf
B33: 22 | C33: Walldorf
B34: 23 | C34: Walldorf
B35: 24 | C35: Walldorf
B36: 25 | C36: Walldorf
B37: 26 | C37: Walldorf
B38: 27 | C38: Walldorf
B39: 28 | C39: Walldorf
B40: 29 | C40: Walldorf
B41: 30 | C41: Walldorf

Sheet SLP-Feiertage
B2: Feiertagskalender / Sondertage
B4: Netzbetreiber: | C4: =Netzbetreiber!$D$9 -> Stadtwerke Walldof GmbH & Co. KG | M4: Verwendeter Feiertagskalender bitte markieren (auch Mehrfachnennungen möglich)
B5: Netzgebiet: | C5: =Netzbetreiber!$D$28 -> Walldorf | M5: Hinweis: Entsprechende Feiertage / Ersatztage werden grau-grün markiert
B6: MP-ID: | C6: =Netzbetreiber!$D$11 -> 9870096700000
B7: gültig ab: | C7: =Netzbetreiber!$D$6 -> 2015-10-01
M8: Vorgaben für Feiertagskalender bundesweit / bundeslandspezif / NB-individuell
M9: DE | N9: HB | O9: HH | P9: SL | Q9: BE | R9: HE | S9: NI | T9: NW | U9: BW | V9: RP | W9: SH | X9: SN | Y9: BB | Z9: BY | AA9: MV | AB9: ST | AC9: TH | AD9: NB
B10: verwendeter Feiertagskalender des Netzgebiets | D10: 2 | E10: =IF(ISERROR(HLOOKUP(E$11,$M$9:$AD$33,$D10,0)),"",HLOOKUP(E$11,$M$9:$AD$33,$D10,0)) ->  | F10: Wochentag und entsprechender Ersatztag | M10: BRD, bundesweit | N10: Bremen | O10: Hamburg | P10: Saarland | Q10: Berlin | R10: Hessen | S10: Nieder-sachsen | T10: Nordrhein-Westfalen | U10: Baden-Württemberg | V10: Rheinland-Pfalz | W10: Schleswig-Holstein | X10: Sachsen | Y10: Brandenburg | Z10: Bayern | AA10: Mecklenburg-Vorpommern | AB10: Sachsen-Anhalt | AC10: Thüringen | AD10: NB-individuell
B11: Feiertag / Sondertag | D11: 3 | F11: Montag | G11: Dienstag | H11: Mittwoch | I11: Donnerstag | J11: Freitag | K11: Samstag | L11: Sonntag | M11: 1 | N11: 0 | O11: 0 | P11: 0 | Q11: 0 | R11: 0 | S11: 0 | T11: 0 | U11: 0 | V11: 0 | W11: 0 | X11: 0 | Y11: 0 | Z11: 0 | AA11: 0 | AB11: 0 | AC11: 0 | AD11: 0
B12: Neujahr (1.1.) | D12: 4 | E12: =MIN(SUMPRODUCT($M$11:$AD$11,M12:AD12),1) -> 1 | F12: Sonntag | G12: Sonntag | H12: Sonntag | I12: Sonntag | J12: Sonntag | K12: Sonntag | L12: Sonntag | M12: 1 | N12: 1 | O12: 1 | P12: 1 | Q12: 1 | R12: 1 | S12: 1 | T12: 1 | U12: 1 | V12: 1 | W12: 1 | X12: 1 | Y12: 1 | Z12: 1 | AA12: 1 | AB12: 1 | AC12: 1 | AD12: 1
B13: Heilige Drei Könige (6.1.) | D13: 5 | E13: =MIN(SUMPRODUCT($M$11:$AD$11,M13:AD13),1) -> 0 | F13: Sonntag | G13: Sonntag | H13: Sonntag | I13: Sonntag | J13: Sonntag | K13: Sonntag | L13: Sonntag | U13: 1 | Z13: 1 | AB13: 1
B14: Rosenmontag (-48 Tage) | D14: 6 | E14: 0 | F14: Sonntag | G14: - | H14: - | I14: - | J14: - | K14: - | L14: -
B15: Faschingsdienstag (-47 Tage) | D15: 7 | E15: 0 | F15: - | G15: Samstag | H15: - | I15: - | J15: - | K15: - | L15: -
B16: Karfreitag (-2 Tage) | D16: 8 | E16: 1 | F16: - | G16: - | H16: - | I16: - | J16: Sonntag | K16: - | L16: - | M16: 1 | N16: 1 | O16: 1 | P16: 1 | Q16: 1 | R16: 1 | S16: 1 | T16: 1 | U16: 1 | V16: 1 | W16: 1 | X16: 1 | Y16: 1 | Z16: 1 | AA16: 1 | AB16: 1 | AC16: 1 | AD16: 1
B17: Ostersonntag (0. Tag) | D17: 9 | E17: 1 | F17: - | G17: - | H17: - | I17: - | J17: - | K17: - | L17: Sonntag | M17: 1 | N17: 1 | O17: 1 | P17: 1 | Q17: 1 | R17: 1 | S17: 1 | T17: 1 | U17: 1 | V17: 1 | W17: 1 | X17: 1 | Y17: 1 | Z17: 1 | AA17: 1 | AB17: 1 | AC17: 1 | AD17: 1
B18: Ostermontag (+1 Tag) | D18: 10 | E18: 1 | F18: Sonntag | G18: - | H18: - | I18: - | J18: - | K18: - | L18: - | M18: 1 | N18: 1 | O18: 1 | P18: 1 | Q18: 1 | R18: 1 | S18: 1 | T18: 1 | U18: 1 | V18: 1 | W18: 1 | X18: 1 | Y18: 1 | Z18: 1 | AA18: 1 | AB18: 1 | AC18: 1 | AD18: 1
B19: Maifeiertag (1.5.) | D19: 11 | E19: 1 | F19: Sonntag | G19: Sonntag | H19: Sonntag | I19: Sonntag | J19: Sonntag | K19: Sonntag | L19: Sonntag | M19: 1 | N19: 1 | O19: 1 | P19: 1 | Q19: 1 | R19: 1 | S19: 1 | T19: 1 | U19: 1 | V19: 1 | W19: 1 | X19: 1 | Y19: 1 | Z19: 1 | AA19: 1 | AB19: 1 | AC19: 1 | AD19: 1
B20: Christi Himmelfahrt (+39 Tage) | D20: 12 | E20: 1 | F20: - | G20: - | H20: - | I20: Sonntag | J20: - | K20: - | L20: - | M20: 1 | N20: 1 | O20: 1 | P20: 1 | Q20: 1 | R20: 1 | S20: 1 | T20: 1 | U20: 1 | V20: 1 | W20: 1 | X20: 1 | Y20: 1 | Z20: 1 | AA20: 1 | AB20: 1 | AC20: 1 | AD20: 1
B21: Pfingstsonntag (+49 Tage) | D21: 13 | E21: 1 | F21: - | G21: - | H21: - | I21: - | J21: - | K21: - | L21: Sonntag | M21: 1 | N21: 1 | O21: 1 | P21: 1 | Q21: 1 | R21: 1 | S21: 1 | T21: 1 | U21: 1 | V21: 1 | W21: 1 | X21: 1 | Y21: 1 | Z21: 1 | AA21: 1 | AB21: 1 | AC21: 1 | AD21: 1
B22: Pfingstmontag (+50 Tage) | D22: 14 | E22: 1 | F22: Sonntag | G22: - | H22: - | I22: - | J22: - | K22: - | L22: - | M22: 1 | N22: 1 | O22: 1 | P22: 1 | Q22: 1 | R22: 1 | S22: 1 | T22: 1 | U22: 1 | V22: 1 | W22: 1 | X22: 1 | Y22: 1 | Z22: 1 | AA22: 1 | AB22: 1 | AC22: 1 | AD22: 1
B23: Fronleichnam (+60 Tage) | D23: 15 | E23: 0 | F23: - | G23: - | H23: - | I23: Sonntag | J23: - | K23: - | L23: - | P23: 1 | R23: 1 | T23: 1 | U23: 1 | V23: 1 | Z23: 1
B24: Friedensfest (8.8.) | D24: 16 | E24: 0 | F24: Sonntag | G24: Sonntag | H24: Sonntag | I24: Sonntag | J24: Sonntag | K24: Sonntag | L24: Sonntag
B25: Mariä Himmelfahrt (15.8.) | D25: 17 | E25: 0 | F25: Sonntag | G25: Sonntag | H25: Sonntag | I25: Sonntag | J25: Sonntag | K25: Sonntag | L25: Sonntag | P25: 1 | Z25: 1
B26: Tag der Dt. Einheit (3.10.) | D26: 18 | E26: 1 | F26: Sonntag | G26: Sonntag | H26: Sonntag | I26: Sonntag | J26: Sonntag | K26: Sonntag | L26: Sonntag | M26: 1 | N26: 1 | O26: 1 | P26: 1 | Q26: 1 | R26: 1 | S26: 1 | T26: 1 | U26: 1 | V26: 1 | W26: 1 | X26: 1 | Y26: 1 | Z26: 1 | AA26: 1 | AB26: 1 | AC26: 1 | AD26: 1
B27: Reformationstag (31.10.) | D27: 19 | E27: 0 | F27: Sonntag | G27: Sonntag | H27: Sonntag | I27: Sonntag | J27: Sonntag | K27: Sonntag | L27: Sonntag | X27: 1 | Y27: 1 | AA27: 1 | AB27: 1 | AC27: 1
B28: Allerheiligen (1.11.) | D28: 20 | E28: 0 | F28: Sonntag | G28: Sonntag | H28: Sonntag | I28: Sonntag | J28: Sonntag | K28: Sonntag | L28: Sonntag | P28: 1 | T28: 1 | U28: 1 | V28: 1 | Z28: 1
B29: Buß- und Bettag (Mi. v. 23.11.) | D29: 21 | E29: 0 | F29: - | G29: - | H29: Sonntag | I29: - | J29: - | K29: - | L29: - | X29: 1
B30: Heilig Abend (24.12.) | D30: 22 | E30: 0 | F30: Samstag | G30: Samstag | H30: Samstag | I30: Samstag | J30: Samstag | K30: Samstag | L30: Sonntag
B31: 1. Weihnachtstag (25.12.) | D31: 23 | E31: 1 | F31: Sonntag | G31: Sonntag | H31: Sonntag | I31: Sonntag | J31: Sonntag | K31: Sonntag | L31: Sonntag | M31: 1 | N31: 1 | O31: 1 | P31: 1 | Q31: 1 | R31: 1 | S31: 1 | T31: 1 | U31: 1 | V31: 1 | W31: 1 | X31: 1 | Y31: 1 | Z31: 1 | AA31: 1 | AB31: 1 | AC31: 1 | AD31: 1
B32: 2. Weihnachtstag (26.12.) | D32: 24 | E32: 1 | F32: Sonntag | G32: Sonntag | H32: Sonntag | I32: Sonntag | J32: Sonntag | K32: Sonntag | L32: Sonntag | M32: 1 | N32: 1 | O32: 1 | P32: 1 | Q32: 1 | R32: 1 | S32: 1 | T32: 1 | U32: 1 | V32: 1 | W32: 1 | X32: 1 | Y32: 1 | Z32: 1 | AA32: 1 | AB32: 1 | AC32: 1 | AD32: 1
B33: Silvester (31.12.) | D33: 25 | E33: 0 | F33: Samstag | G33: Samstag | H33: Samstag | I33: Samstag | J33: Samstag | K33: Samstag | L33: Sonntag

Sheet BDEW-Standard (hidden)
A1: Stand: | B1: 2015-06-18 | D1: BDEW Standardlastprofile - SLP-Koef. | F1: hier keine Eintragungen / Veränderungen vornehmen !
A2: Quelle | B2: BDEW Nomenklatur | C2: EDI-CODE | D2: Profilname | E2: A | F2: B | G2: C | H2: D | I2: J0 | J2: m_H | K2: b_H | L2: m_W | M2: b_W
A3: =IF(MID(D3,1,8)="SigLinDe","SLP-FfE","SLP-TUM") -> SLP-TUM | B3: ="DE_"&IF(A3="SLP-TUM",MID(D3,5,4)&RIGHT(D3,1),"")&IF(A3="SLP-FfE",MID(#REF!,5,3)&"3"&RIGHT(#REF!,1),"") -> DE_HEF03 | C3: =IF(A3="SLP-TUM",LEFT(D3,3),"")&IF(A3="SLP-FfE",MID(#REF!,2,1)&MID(#REF!,1,1)&MID(#REF!,3,1),"") -> D13 | D3: D13/HEF03 | E3: 3.04696946 | F3: -37.18331413 | G3: 5.67278466 | H3: 0.09619306 | I3: 40.0 | J3: 0 | K3: 0 | L3: 0 | M3: 0
A4: =IF(MID(D4,1,8)="SigLinDe","SLP-FfE","SLP-TUM") -> SLP-TUM | B4: ="DE_"&IF(A4="SLP-TUM",MID(D4,5,4)&RIGHT(D4,1),"")&IF(A4="SLP-FfE",MID(D1,5,3)&"3"&RIGHT(D1,1),"") -> DE_HEF04 | C4: =IF(A4="SLP-TUM",LEFT(D4,3),"")&IF(A4="SLP-FfE",MID(D1,2,1)&MID(D1,1,1)&MID(D1,3,1),"") -> D14 | D4: D14/HEF04 | E4: 3.18501913 | F4: -37.41241549 | G4: 6.17231787 | H4: 0.07610959 | I4: 40.0 | J4: 0 | K4: 0 | L4: 0 | M4: 0
A5: SLP-TUM | B5: DE_HEF05 | C5: D15 | D5: D15/HEF05 | E5: 3.34566667 | F5: -37.52683159 | G5: 6.43289368 | H5: 0.05625662 | I5: 40.0 | J5: 0 | K5: 0 | L5: 0 | M5: 0
A6: SLP-FfE | B6: ="DE_"&IF(A6="SLP-TUM",MID(D6,5,4)&RIGHT(D6,1),"")&IF(A6="SLP-FfE",MID(D3,5,3)&"3"&RIGHT(D3,1),"") -> DE_HEF33 | C6: 1D3 | D6: SigLinDe FfE/'HEF03' | E6: 1.62095442 | F6: -37.18331413 | G6: 5.67278466 | H6: 0.07164312 | I6: 40.0 | J6: - 0.04957002 | K6: 0.84010146 | L6: - 0.00220903 | M6: 0.10744680
A7: SLP-FfE | B7: DE_HEF34 | C7: 1D4 | D7: SigLinDe FfE/'HEF04' | E7: 1.38196630 | F7: -37.41241549 | G7: 6.17231787 | H7: 0.03962836 | I7: 40.0 | J7: - 0.06721587 | K7: 1.11671384 | L7: - 0.00199816 | M7: 0.13550697
A8: SLP-TUM | B8: DE_HMF03 | C8: D23 | D8: D23/HMF03 | E8: 2.38776179 | F8: -34.72136051 | G8: 5.81643040 | H8: 0.12081937 | I8: 40.0 | J8: 0 | K8: 0 | L8: 0 | M8: 0
A9: SLP-TUM | B9: DE_HMF04 | C9: D24 | D9: D24/HMF04 | E9: 2.51877752 | F9: -35.03337542 | G9: 6.22406340 | H9: 0.10107817 | I9: 40.0 | J9: 0 | K9: 0 | L9: 0 | M9: 0
A10: SLP-TUM | B10: DE_HMF05 | C10: D25 | D10: D25/HMF05 | E10: 2.65644059 | F10: -35.25169267 | G10: 6.51826586 | H10: 0.08120587 | I10: 40.0 | J10: 0 | K10: 0 | L10: 0 | M10: 0
A11: SLP-FfE | B11: DE_HMF33 | C11: 2D3 | D11: SigLinDe FfE/'HMF03' | E11: 1.23286547 | F11: -34.72136051 | G11: 5.81643040 | H11: 0.08733519 | I11: 40.0 | J11: - 0.04092840 | K11: 0.76729204 | L11: - 0.00223203 | M11: 0.11992072
A12: SLP-FfE | B12: DE_HMF34 | C12: 2D4 | D12: SigLinDe FfE/'HMF04' | E12: 1.04435377 | F12: -35.03337542 | G12: 6.22406340 | H12: 0.05029172 | I12: 40.0 | J12: - 0.05358302 | K12: 0.99959009 | L12: - 0.00217584 | M12: 0.16332988
A13: SLP-TUM | B13: DE_HKO03 | C13: HK3 | D13: HK3/HKO03 | E13: 0.40409320 | F13: -24.43929680 | G13: 6.57181750 | H13: 0.71077100 | I13: 40.0 | J13: 0 | K13: 0 | L13: 0 | M13: 0
A14: SLP-TUM | B14: DE_GMK01 | C14: MK1 | D14: MK1/GMK01 | E14: 1.86445336 | F14: -30.70716325 | G14: 6.46269373 | H14: 0.10483387 | I14: 40.0 | J14: 0 | K14: 0 | L14: 0 | M14: 0
A15: SLP-TUM | B15: DE_GMK02 | C15: MK2 | D15: MK2/GMK02 | E15: 2.29081839 | F15: -33.14768673 | G15: 6.37147650 | H15: 0.08100232 | I15: 40.0 | J15: 0 | K15: 0 | L15: 0 | M15: 0
A16: SLP-TUM | B16: DE_GMK03 | C16: MK3 | D16: MK3/GMK03 | E16: 2.78824239 | F16: -34.88061302 | G16: 6.59518992 | H16: 0.05403291 | I16: 40.0 | J16: 0 | K16: 0 | L16: 0 | M16: 0
A17: SLP-TUM | B17: DE_GMK04 | C17: MK4 | D17: MK4/GMK04 | E17: 3.11772481 | F17: -35.87150622 | G17: 7.51868289 | H17: 0.03433009 | I17: 40.0 | J17: 0 | K17: 0 | L17: 0 | M17: 0
A18: SLP-TUM | B18: DE_GMK05 | C18: MK5 | D18: MK5/GMK05 | E18: 3.58623553 | F18: -37.08029935 | G18: 8.24205718 | H18: 0.01460076 | I18: 40.0 | J18: 0 | K18: 0 | L18: 0 | M18: 0
A19: SLP-FfE | B19: DE_GMK33 | C19: KM3 | D19: SigLinDe FfE/'GMK03' | E19: 1.42024192 | F19: -34.88061302 | G19: 6.59518992 | H19: 0.03853170 | I19: 40.0 | J19: - 0.05210842 | K19: 0.86479187 | L19: - 0.00143692 | M19: 0.06376019
A20: SLP-FfE | B20: DE_GMK34 | C20: KM4 | D20: SigLinDe FfE/'GMK04' | E20: 1.32849128 | F20: -35.87150622 | G20: 7.51868289 | H20: 0.01755404 | I20: 40.0 | J20: - 0.07589828 | K20: 1.19425550 | L20: - 0.00089798 | M20: 0.06033373
A21: SLP-TUM | B21: DE_GHA01 | C21: HA1 | D21: HA1/GHA01 | E21: 2.37428277 | F21: -34.75955014 | G21: 5.99870368 | H21: 0.14944114 | I21: 40.0 | J21: 0 | K21: 0 | L21: 0 | M21: 0
A22: SLP-TUM | B22: DE_GHA02 | C22: HA2 | D22: HA2/GHA02 | E22: 2.85447485 | F22: -35.62942308 | G22: 7.00582644 | H22: 0.11647722 | I22: 40.0 | J22: 0 | K22: 0 | L22: 0 | M22: 0
A23: SLP-TUM | B23: DE_GHA03 | C23: HA3 | D23: HA3/GHA03 | E23: 3.58112137 | F23: -36.96500652 | G23: 7.22569467 | H23: 0.04484157 | I23: 40.0 | J23: 0 | K23: 0 | L23: 0 | M23: 0
A24: SLP-TUM | B24: DE_GHA04 | C24: HA4 | D24: HA4/GHA04 | E24: 4.01969020 | F24: -37.82820366 | G24: 8.15933688 | H24: 0.04728450 | I24: 40.0 | J24: 0 | K24: 0 | L24: 0 | M24: 0
A25: SLP-TUM | B25: DE_GHA05 | C25: HA5 | D25: HA5/GHA05 | E25: 4.82523757 | F25: -39.28025640 | G25: 8.62402169 | H25: 0.00999446 | I25: 40.0 | J25: 0 | K25: 0 | L25: 0 | M25: 0
A26: SLP-FfE | B26: DE_GHA33 | C26: AH3 | D26: SigLinDe FfE/'GHA03' | E26: 1.97247754 | F26: -36.96500652 | G26: 7.22569467 | H26: 0.03457816 | I26: 40.0 | J26: - 0.07421740 | K26: 1.04488687 | L26: - 0.00082954 | M26: 0.04617949
A27: SLP-FfE | B27: DE_GHA34 | C27: AH4 | D27: SigLinDe FfE/'GHA04' | E27: 1.83984552 | F27: -37.82820366 | G27: 8.15933688 | H27: 0.02597101 | I27: 40.0 | J27: - 0.10692617 | K27: 1.45522404 | L27: - 0.00049197 | M27: 0.06918515
A28: SLP-TUM | B28: DE_GKO01 | C28: KO1 | D28: KO1/GKO01 | E28: 1.41595709 | F28: -30.84251916 | G28: 6.34675570 | H28: 0.32117907 | I28: 40.0 | J28: 0 | K28: 0 | L28: 0 | M28: 0
A29: SLP-TUM | B29: DE_GKO02 | C29: KO2 | D29: KO2/GKO02 | E29: 2.06605007 | F29: -33.60165203 | G29: 6.67536099 | H29: 0.23091247 | I29: 40.0 | J29: 0 | K29: 0 | L29: 0 | M29: 0
A30: SLP-TUM | B30: DE_GKO03 | C30: KO3 | D30: KO3/GKO03 | E30: 2.71722884 | F30: -35.14125631 | G30: 7.13033951 | H30: 0.14184717 | I30: 40.0 | J30: 0 | K30: 0 | L30: 0 | M30: 0
A31: SLP-TUM | B31: DE_GKO04 | C31: KO4 | D31: KO4/GKO04 | E31: 3.44289429 | F31: -36.65905041 | G31: 7.60832262 | H31: 0.07468501 | I31: 40.0 | J31: 0 | K31: 0 | L31: 0 | M31: 0
A32: SLP-TUM | B32: DE_GKO05 | C32: KO5 | D32: KO5/GKO05 | E32: 4.36248330 | F32: -38.66340216 | G32: 7.59746443 | H32: 0.00832642 | I32: 40.0 | J32: 0 | K32: 0 | L32: 0 | M32: 0
A33: SLP-FfE | B33: DE_GKO33 | C33: OK3 | D33: SigLinDe FfE/'GKO03' | E33: 1.35545152 | F33: -35.14125631 | G33: 7.13033951 | H33: 0.09906186 | I33: 40.0 | J33: - 0.05264869 | K33: 0.86260858 | L33: - 0.00088084 | M33: 0.09640142
A34: SLP-FfE | B34: DE_GKO34 | C34: OK4 | D34: SigLinDe FfE/'GKO04' | E34: 1.42566839 | F34: -36.65905041 | G34: 7.60832262 | H34: 0.03711159 | I34: 40.0 | J34: - 0.08093589 | K34: 1.23645270 | L34: - 0.00076280 | M34: 0.10029791
A35: SLP-TUM | B35: DE_GBD01 | C35: BD1 | D35: BD1/GBD01 | E35: 1.29035046 | F35: -35.23498683 | G35: 2.10642469 | H35: 0.45572533 | I35: 40.0 | J35: 0 | K35: 0 | L35: 0 | M35: 0
A36: SLP-TUM | B36: DE_GBD02 | C36: BD2 | D36: BD2/GBD02 | E36: 2.10958784 | F36: -35.84445084 | G36: 5.21546723 | H36: 0.28545825 | I36: 40.0 | J36: 0 | K36: 0 | L36: 0 | M36: 0
A37: SLP-TUM | B37: DE_GBD03 | C37: BD3 | D37: BD3/GBD03 | E37: 2.91770272 | F37: -36.17941165 | G37: 5.92651617 | H37: 0.11519118 | I37: 40.0 | J37: 0 | K37: 0 | L37: 0 | M37: 0
A38: SLP-TUM | B38: DE_GBD04 | C38: BD4 | D38: BD4/GBD04 | E38: 3.75000000 | F38: -37.50000000 | G38: 6.80000000 | H38: 0.06091127 | I38: 40.0 | J38: 0 | K38: 0 | L38: 0 | M38: 0
A39: SLP-TUM | B39: DE_GBD05 | C39: BD5 | D39: BD5/GBD05 | E39: 4.56995057 | F39: -38.53533924 | G39: 7.59769910 | H39: 0.00663135 | I39: 40.0 | J39: 0 | K39: 0 | L39: 0 | M39: 0
A40: SLP-FfE | B40: DE_GBD33 | C40: DB3 | D40: SigLinDe FfE/'GBD03' | E40: 1.46336816 | F40: -36.17941165 | G40: 5.92651617 | H40: 0.08088348 | I40: 40.0 | J40: - 0.04757999 | K40: 0.82307542 | L40: - 0.00192726 | M40: 0.10770460
A41: SLP-FfE | B41: DE_GBD34 | C41: DB4 | D41: SigLinDe FfE/'GBD04' | E41: 1.51757916 | F41: -37.50000000 | G41: 6.80000000 | H41: 0.02958005 | I41: 40.0 | J41: - 0.07885592 | K41: 1.21612499 | L41: - 0.00131337 | M41: 0.09687211
A42: SLP-TUM | B42: DE_GGA01 | C42: GA1 | D42: GA1/GGA01 | E42: 1.17703454 | F42: -39.15999140 | G42: 4.20761096 | H42: 0.66047393 | I42: 40.0 | J42: 0 | K42: 0 | L42: 0 | M42: 0
A43: SLP-TUM | B43: DE_GGA02 | C43: GA2 | D43: GA2/GGA02 | E43: 1.64876229 | F43: -36.39927357 | G43: 6.21491721 | H43: 0.48776373 | I43: 40.0 | J43: 0 | K43: 0 | L43: 0 | M43: 0
A44: SLP-TUM | B44: DE_GGA03 | C44: GA3 | D44: GA3/GGA03 | E44: 2.28501647 | F44: -36.28785839 | G44: 6.58851264 | H44: 0.31505353 | I44: 40.0 | J44: 0 | K44: 0 | L44: 0 | M44: 0
A45: SLP-TUM | B45: DE_GGA04 | C45: GA4 | D45: GA4/GGA04 | E45: 2.81956562 | F45: -36.00000000 | G45: 7.73685177 | H45: 0.15728098 | I45: 40.0 | J45: 0 | K45: 0 | L45: 0 | M45: 0
A46: SLP-TUM | B46: DE_GGA05 | C46: GA5 | D46: GA5/GGA05 | E46: 3.32955748 | F46: -36.01462112 | G46: 8.77674647 | H46: 0.00000000 | I46: 40.0 | J46: 0 | K46: 0 | L46: 0 | M46: 0
A47: SLP-FfE | B47: DE_GGA33 | C47: AG3 | D47: SigLinDe FfE/'GGA03' | E47: 1.15820817 | F47: -36.28785839 | G47: 6.58851264 | H47: 0.22356802 | I47: 40.0 | J47: - 0.04103348 | K47: 0.75264514 | L47: - 0.00090877 | M47: 0.19166407
A48: SLP-FfE | B48: DE_GGA34 | C48: AG4 | D48: SigLinDe FfE/'GGA04' | E48: 1.18483198 | F48: -36.00000000 | G48: 7.73685177 | H48: 0.07931074 | I48: 40.0 | J48: - 0.06873832 | K48: 1.13085701 | L48: - 0.00065870 | M48: 0.19103010
A49: SLP-TUM | B49: DE_GBH01 | C49: BH1 | D49: BH1/GBH01 | E49: 1.47717857 | F49: -35.08344471 | G49: 5.41234247 | H49: 0.47442641 | I49: 40.0 | J49: 0 | K49: 0 | L49: 0 | M49: 0
A50: SLP-TUM | B50: DE_GBH02 | C50: BH2 | D50: BH2/GBH02 | E50: 1.70052794 | F50: -35.15000000 | G50: 6.16327385 | H50: 0.42982609 | I50: 40.0 | J50: 0 | K50: 0 | L50: 0 | M50: 0
A51: SLP-TUM | B51: DE_GBH03 | C51: BH3 | D51: BH3/GBH03 | E51: 2.01024717 | F51: -35.25321235 | G51: 6.15444064 | H51: 0.32947410 | I51: 40.0 | J51: 0 | K51: 0 | L51: 0 | M51: 0
A52: SLP-TUM | B52: DE_GBH04 | C52: BH4 | D52: BH4/GBH04 | E52: 2.45951806 | F52: -35.25321235 | G52: 6.05870007 | H52: 0.16473705 | I52: 40.0 | J52: 0 | K52: 0 | L52: 0 | M52: 0
A53: SLP-TUM | B53: DE_GBH05 | C53: BH5 | D53: BH5/GBH05 | E53: 2.98000000 | F53: -35.80000000 | G53: 5.63405806 | H53: 0.00000000 | I53: 40.0 | J53: 0 | K53: 0 | L53: 0 | M53: 0
A54: SLP-FfE | B54: DE_GBH33 | C54: HB3 | D54: SigLinDe FfE/'GBH03' | E54: 0.98742830 | F54: -35.25321235 | G54: 6.15444064 | H54: 0.22657157 | I54: 40.0 | J54: - 0.03390197 | K54: 0.69382337 | L54: - 0.00128490 | M54: 0.20297317
A55: SLP-FfE | B55: DE_GBH34 | C55: HB4 | D55: SigLinDe FfE/'GBH04' | E55: 0.98725847 | F55: -35.25321235 | G55: 6.05870007 | H55: 0.07935118 | I55: 40.0 | J55: - 0.04950132 | K55: 0.96379986 | L55: - 0.00223038 | M55: 0.22883983
A56: SLP-TUM | B56: DE_GWA01 | C56: WA1 | D56: WA1/GWA01 | E56: 0.40000000 | F56: -40.51494818 | G56: 2.87479570 | H56: 0.93510758 | I56: 40.0 | J56: 0 | K56: 0 | L56: 0 | M56: 0
A57: SLP-TUM | B57: DE_GWA02 | C57: WA2 | D57: WA2/GWA02 | E57: 0.61662289 | F57: -38.40000000 | G57: 3.87053519 | H57: 0.87002503 | I57: 40.0 | J57: 0 | K57: 0 | L57: 0 | M57: 0
A58: SLP-TUM | B58: DE_GWA03 | C58: WA3 | D58: WA3/GWA03 | E58: 0.76572901 | F58: -36.02379115 | G58: 4.86627468 | H58: 0.80494248 | I58: 40.0 | J58: 0 | K58: 0 | L58: 0 | M58: 0
A59: SLP-TUM | B59: DE_GWA04 | C59: WA4 | D59: WA4/GWA04 | E59: 1.05358747 | F59: -35.30000000 | G59: 4.86627468 | H59: 0.68110423 | I59: 40.0 | J59: 0 | K59: 0 | L59: 0 | M59: 0
A60: SLP-TUM | B60: DE_GWA05 | C60: WA5 | D60: WA5/GWA05 | E60: 1.27688537 | F60: -34.34243707 | G60: 5.45188224 | H60: 0.55726599 | I60: 40.0 | J60: 0 | K60: 0 | L60: 0 | M60: 0
A61: SLP-FfE | B61: DE_GWA33 | C61: AW3 | D61: SigLinDe FfE/'GWA03' | E61: 0.33378383 | F61: -36.02379115 | G61: 4.86627468 | H61: 0.49122796 | I61: 40.0 | J61: - 0.00922635 | K61: 0.45957571 | L61: - 0.00096764 | M61: 0.39642908
A62: SLP-FfE | B62: DE_GWA34 | C62: AW4 | D62: SigLinDe FfE/'GWA04' | E62: 0.39253387 | F62: -35.30000000 | G62: 4.86627468 | H62: 0.30450987 | I62: 40.0 | J62: - 0.01679931 | K62: 0.67108889 | L62: - 0.00203008 | M62: 0.56146234
A63: SLP-TUM | B63: DE_GGB01 | C63: GB1 | D63: GB1/GGB01 | E63: 3.17619448 | F63: -40.83666086 | G63: 3.67858917 | H63: 0.15021558 | I63: 40.0 | J63: 0 | K63: 0 | L63: 0 | M63: 0
A64: SLP-TUM | B64: DE_GGB02 | C64: GB2 | D64: GB2/GGB02 | E64: 3.39046451 | F64: -39.28752164 | G64: 4.49057405 | H64: 0.08347832 | I64: 40.0 | J64: 0 | K64: 0 | L64: 0 | M64: 0
A65: SLP-TUM | B65: DE_GGB03 | C65: GB3 | D65: GB3/GGB03 | E65: 3.25727421 | F65: -37.50000000 | G65: 6.34621480 | H65: 0.08662265 | I65: 40.0 | J65: 0 | K65: 0 | L65: 0 | M65: 0
A66: SLP-TUM | B66: DE_GGB04 | C66: GB4 | D66: GB4/GGB04 | E66: 3.60177356 | F66: -37.88253684 | G66: 6.98360703 | H66: 0.05482619 | I66: 40.0 | J66: 0 | K66: 0 | L66: 0 | M66: 0
A67: SLP-TUM | B67: DE_GGB05 | C67: GB5 | D67: GB5/GGB05 | E67: 3.93205325 | F67: -38.14332482 | G67: 7.61858710 | H67: 0.02302972 | I67: 40.0 | J67: 0 | K67: 0 | L67: 0 | M67: 0
A68: =IF(MID(D68,1,8)="SigLinDe","SLP-FfE","SLP-TUM") -> SLP-FfE | B68: ="DE_"&IF(A68="SLP-TUM",MID(D68,5,4)&RIGHT(D68,1),"")&IF(A68="SLP-FfE",MID(D65,5,3)&"3"&RIGHT(D65,1),"") -> DE_GGB33 | C68: =IF(A68="SLP-TUM",LEFT(D68,3),"")&IF(A68="SLP-FfE",MID(D65,2,1)&MID(D65,1,1)&MID(D65,3,1),"") -> BG3 | D68: SigLinDe FfE/'GGB03' | E68: 1.82137780 | F68: -37.50000000 | G68: 6.34621480 | H68: 0.06781179 | I68: 40.0 | J68: - 0.06076657 | K68: 0.93081586 | L68: - 0.00139669 | M68: 0.08503988
A69: SLP-FfE | B69: DE_GGB34 | C69: BG4 | D69: SigLinDe FfE/'GGB04' | E69: 1.62668116 | F69: -37.88253684 | G69: 6.98360703 | H69: 0.02971360 | I69: 40.0 | J69: - 0.08543329 | K69: 1.27096292 | L69: - 0.00113192 | M69: 0.09281239
A70: SLP-TUM | B70: DE_GBA01 | C70: BA1 | D70: BA1/GBA01 | E70: 0.15000000 | F70: -36.00000000 | G70: 2.00000000 | H70: 1.00000000 | I70: 40.0 | J70: 0 | K70: 0 | L70: 0 | M70: 0
A71: SLP-TUM | B71: DE_GBA02 | C71: BA2 | D71: BA2/GBA02 | E71: 0.38791910 | F71: -35.50000000 | G71: 4.00000000 | H71: 0.90548154 | I71: 40.0 | J71: 0 | K71: 0 | L71: 0 | M71: 0
A72: SLP-TUM | B72: DE_GBA03 | C72: BA3 | D72: BA3/GBA03 | E72: 0.62619622 | F72: -33.00000000 | G72: 5.72123025 | H72: 0.78556546 | I72: 40.0 | J72: 0 | K72: 0 | L72: 0 | M72: 0
A73: SLP-TUM | B73: DE_GBA04 | C73: BA4 | D73: BA4/GBA04 | E73: 0.93158890 | F73: -33.35000000 | G73: 5.72123025 | H73: 0.66564938 | I73: 40.0 | J73: 0 | K73: 0 | L73: 0 | M73: 0
A74: SLP-TUM | B74: DE_GBA05 | C74: BA5 | D74: BA5/GBA05 | E74: 1.27795673 | F74: -34.51739200 | G74: 5.72123025 | H74: 0.54573329 | I74: 40.0 | J74: 0 | K74: 0 | L74: 0 | M74: 0
A75: SLP-FfE | B75: DE_GBA33 | C75: AB3 | D75: SigLinDe FfE/'GBA03' | E75: 0.27700871 | F75: -33.00000000 | G75: 5.72123025 | H75: 0.48651183 | I75: 40.0 | J75: - 0.00948491 | K75: 0.46302369 | L75: - 0.00071342 | M75: 0.38674467
A76: SLP-FfE | B76: DE_GBA34 | C76: AB4 | D76: SigLinDe FfE/'GBA04' | E76: 0.35376402 | F76: -33.35000000 | G76: 5.72123025 | H76: 0.30333053 | I76: 40.0 | J76: - 0.01774635 | K76: 0.68256991 | L76: - 0.00139118 | M76: 0.54346239
A77: SLP-TUM | B77: DE_GPD01 | C77: PD1 | D77: PD1/GPD01 | E77: 1.48940225 | F77: -32.42526775 | G77: 8.17326121 | H77: 0.39059874 | I77: 40.0 | J77: 0 | K77: 0 | L77: 0 | M77: 0
A78: SLP-TUM | B78: DE_GPD02 | C78: PD2 | D78: PD2/GPD02 | E78: 2.57841725 | F78: -34.73212610 | G78: 6.48050351 | H78: 0.14077291 | I78: 40.0 | J78: 0 | K78: 0 | L78: 0 | M78: 0
A79: SLP-TUM | B79: DE_GPD03 | C79: PD3 | D79: PD3/GPD03 | E79: 3.20000000 | F79: -35.80000000 | G79: 8.40000000 | H79: 0.09384861 | I79: 40.0 | J79: 0 | K79: 0 | L79: 0 | M79: 0
A80: SLP-TUM | B80: DE_GPD04 | C80: PD4 | D80: PD4/GPD04 | E80: 3.85000000 | F80: -37.00000000 | G80: 10.24050210 | H80: 0.04692430 | I80: 40.0 | J80: 0 | K80: 0 | L80: 0 | M80: 0
A81: SLP-TUM | B81: DE_GPD05 | C81: PD5 | D81: PD5/GPD05 | E81: 4.74628139 | F81: -38.75042939 | G81: 10.27533341 | H81: 0.00000000 | I81: 40.0 | J81: 0 | K81: 0 | L81: 0 | M81: 0
A82: SLP-FfE | B82: DE_GPD33 | C82: DP3 | D82: SigLinDe FfE/'GPD03' | E82: 1.71107393 | F82: -35.80000000 | G82: 8.40000000 | H82: 0.07025458 | I82: 40.0 | J82: - 0.07453811 | K82: 1.04630054 | L82: - 0.00036721 | M82: 0.06218823
A83: SLP-FfE | B83: DE_GPD34 | C83: DP4 | D83: SigLinDe FfE/'GPD04' | E83: 1.88346094 | F83: -37.00000000 | G83: 10.24050210 | H83: 0.02754704 | I83: 40.0 | J83: - 0.12530997 | K83: 1.62759988 | L83: - 0.00011051 | M83: 0.06351194
A84: SLP-TUM | B84: DE_GMF01 | C84: MF1 | D84: MF1/GMF01 | E84: 2.11635309 | F84: -34.26286231 | G84: 5.17638742 | H84: 0.16069454 | I84: 40.0 | J84: 0 | K84: 0 | L84: 0 | M84: 0
A85: SLP-TUM | B85: DE_GMF02 | C85: MF2 | D85: MF2/GMF02 | E85: 2.24863333 | F85: -34.54284307 | G85: 5.55452448 | H85: 0.14082196 | I85: 40.0 | J85: 0 | K85: 0 | L85: 0 | M85: 0
A86: SLP-TUM | B86: DE_GMF03 | C86: MF3 | D86: MF3/GMF03 | E86: 2.38776179 | F86: -34.72136051 | G86: 5.81643040 | H86: 0.12081937 | I86: 40.0 | J86: 0 | K86: 0 | L86: 0 | M86: 0
A87: SLP-TUM | B87: DE_GMF04 | C87: MF4 | D87: MF4/GMF04 | E87: 2.51877752 | F87: -35.03337542 | G87: 6.22406340 | H87: 0.10107817 | I87: 40.0 | J87: 0 | K87: 0 | L87: 0 | M87: 0
A88: SLP-TUM | B88: DE_GMF05 | C88: MF5 | D88: MF5/GMF05 | E88: 2.65644059 | F88: -35.25169267 | G88: 6.51826586 | H88: 0.08120587 | I88: 40.0 | J88: 0 | K88: 0 | L88: 0 | M88: 0
A89: SLP-FfE | B89: DE_GMF33 | C89: FM3 | D89: SigLinDe FfE/'GMF03' | E89: 1.23286547 | F89: -34.72136051 | G89: 5.81643040 | H89: 0.08733519 | I89: 40.0 | J89: - 0.04092840 | K89: 0.76729204 | L89: - 0.00223203 | M89: 0.11992072
A90: SLP-FfE | B90: DE_GMF34 | C90: FM4 | D90: SigLinDe FfE/'GMF04' | E90: 1.04435377 | F90: -35.03337542 | G90: 6.22406340 | H90: 0.05029172 | I90: 40.0 | J90: - 0.05358302 | K90: 0.99959009 | L90: - 0.00217584 | M90: 0.16332988
A91: SLP-TUM | B91: DE_GHD03 | C91: HD3 | D91: HD3/GHD03 | E91: 2.57925101 | F91: -35.68161440 | G91: 6.68579761 | H91: 0.19955410 | I91: 40.0 | J91: 0 | K91: 0 | L91: 0 | M91: 0
A92: SLP-TUM | B92: DE_GHD04 | C92: HD4 | D92: HD4/GHD04 | E92: 3.00843456 | F92: -36.60784527 | G92: 7.32118695 | H92: 0.15496603 | I92: 40.0 | J92: 0 | K92: 0 | L92: 0 | M92: 0
A93: =IF(MID(D93,1,8)="SigLinDe","SLP-FfE","SLP-TUM") -> SLP-FfE | B93: ="DE_"&IF(A93="SLP-TUM",MID(D93,5,4)&RIGHT(D93,1),"")&IF(A93="SLP-FfE",MID(D91,5,3)&"3"&RIGHT(D91,1),"") -> DE_GHD33 | C93: =IF(A93="SLP-TUM",LEFT(D93,3),"")&IF(A93="SLP-FfE",MID(D91,2,1)&MID(D91,1,1)&MID(D91,3,1),"") -> DH3 | D93: SigLinDe FfE/'GHD03' | E93: 1.30106233 | F93: -35.68161440 | G93: 6.68579761 | H93: 0.14092667 | I93: 40.0 | J93: - 0.04734281 | K93: 0.81416913 | L93: - 0.00106006 | M93: 0.13250921
A94: SLP-FfE | B94: ="DE_"&IF(A94="SLP-TUM",MID(D94,5,4)&RIGHT(D94,1),"")&IF(A94="SLP-FfE",MID(D92,5,3)&"3"&RIGHT(D92,1),"") -> DE_GHD34 | C94: =IF(A94="SLP-TUM",LEFT(D94,3),"")&IF(A94="SLP-FfE",MID(D92,2,1)&MID(D92,1,1)&MID(D92,3,1),"") -> DH4 | D94: SigLinDe FfE/'GHD04' | E94: 1.25696004 | F94: -36.60784527 | G94: 7.32118695 | H94: 0.07769600 | I94: 40.0 | J94: - 0.06968260 | K94: 1.13797018 | L94: - 0.00085220 | M94: 0.19210676
A95: SLP-TUM | B95: BB_HEF03 | C95: R13 | D95: Bundeslandprofil | E95: 3.02173986 | F95: -37.18235995 | G95: 5.647716955 | H95: 0.1152387564 | I95: 40.0 | J95: 0 | K95: 0 | L95: 0 | M95: 0
A96: SLP-TUM | B96: BB_HEF04 | C96: R14 | D96: Bundeslandprofil | E96: 3.159294041 | F96: -37.406886 | G96: 6.14189256 | H96: 0.09226611063 | I96: 40.0 | J96: 0 | K96: 0 | L96: 0 | M96: 0
A97: SLP-TUM | B97: BB_HMF03 | C97: R23 | D97: Bundeslandprofil | E97: 2.354808279 | F97: -34.71502985 | G97: 5.867563927 | H97: 0.1509274266 | I97: 40.0 | J97: 0 | K97: 0 | L97: 0 | M97: 0
A98: SLP-TUM | B98: BB_HMF04 | C98: R24 | D98: Bundeslandprofil | E98: 2.485916058 | F98: -35.04359777 | G98: 6.281821421 | H98: 0.1283904218 | I98: 40.0 | J98: 0 | K98: 0 | L98: 0 | M98: 0
A99: SLP-TUM | B99: BE_HEF03 | C99: B13 | D99: Bundeslandprofil | E99: 3.055384245 | F99: -37.18363742 | G99: 5.68108246 | H99: 0.1001699849 | I99: 40.0 | J99: 0 | K99: 0 | L99: 0 | M99: 0
A100: SLP-TUM | B100: BE_HEF04 | C100: B14 | D100: Bundeslandprofil | E100: 3.193597811 | F100: -37.41424783 | G100: 6.182402147 | H100: 0.07892127136 | I100: 40.0 | J100: 0 | K100: 0 | L100: 0 | M100: 0
A101: SLP-TUM | B101: BE_HMF03 | C101: B23 | D101: Bundeslandprofil | E101: 2.398755232 | F101: -34.72348777 | G101: 5.799644639 | H101: 0.1239073203 | I101: 40.0 | J101: 0 | K101: 0 | L101: 0 | M101: 0
A102: SLP-TUM | B102: BE_HMF04 | C102: B24 | D102: Bundeslandprofil | E102: 2.529738018 | F102: -35.03001451 | G102: 6.205110889 | H102: 0.1030064402 | I102: 40.0 | J102: 0 | K102: 0 | L102: 0 | M102: 0
A103: SLP-TUM | B103: BW_HEF03 | C103: W13 | D103: Bundeslandprofil | E103: 3.038554675 | F103: -37.18299084 | G103: 5.664486865 | H103: 0.09558445073 | I103: 40.0 | J103: 0 | K103: 0 | L103: 0 | M103: 0
A104: SLP-TUM | B104: BW_HEF04 | C104: W14 | D104: Bundeslandprofil | E104: 3.176440449 | F104: -37.41058315 | G104: 6.162233598 | H104: 0.07593772037 | I104: 40.0 | J104: 0 | K104: 0 | L104: 0 | M104: 0
A105: SLP-TUM | B105: BW_HMF03 | C105: W23 | D105: Bundeslandprofil | E105: 2.37676835 | F105: -34.71923325 | G105: 5.833216164 | H105: 0.1218181998 | I105: 40.0 | J105: 0 | K105: 0 | L105: 0 | M105: 0
A106: SLP-TUM | B106: BW_HMF04 | C106: W24 | D106: Bundeslandprofil | E106: 2.507817019 | F106: -35.03673633 | G106: 6.243015903 | H106: 0.102519515 | I106: 40.0 | J106: 0 | K106: 0 | L106: 0 | M106: 0
A107: SLP-TUM | B107: BY_HEF03 | C107: G13 | D107: Bundeslandprofil | E107: 3.02173986 | F107: -37.18235995 | G107: 5.647716955 | H107: 0.09562624075 | I107: 40.0 | J107: 0 | K107: 0 | L107: 0 | M107: 0
A108: SLP-TUM | B108: BY_HEF04 | C108: G14 | D108: Bundeslandprofil | E108: 3.159294041 | F108: -37.406886 | G108: 6.14189256 | H108: 0.0765633159 | I108: 40.0 | J108: 0 | K108: 0 | L108: 0 | M108: 0
A109: SLP-TUM | B109: BY_HMF03 | C109: G23 | D109: Bundeslandprofil | E109: 2.354808279 | F109: -34.71502985 | G109: 5.867563927 | H109: 0.1252410464 | I109: 40.0 | J109: 0 | K109: 0 | L109: 0 | M109: 0
A110: SLP-TUM | B110: BY_HMF04 | C110: G24 | D110: Bundeslandprofil | E110: 2.485916058 | F110: -35.04359777 | G110: 6.281821421 | H110: 0.1065396206 | I110: 40.0 | J110: 0 | K110: 0 | L110: 0 | M110: 0
A111: SLP-TUM | B111: HB_HEF03 | C111: M13 | D111: Bundeslandprofil | E111: 3.089072056 | F111: -37.18494968 | G111: 5.713795913 | H111: 0.08152554463 | I111: 40.0 | J111: 0 | K111: 0 | L111: 0 | M111: 0
A112: SLP-TUM | B112: HB_HEF04 | C112: M14 | D112: Bundeslandprofil | E112: 3.227944593 | F112: -37.42147999 | G112: 6.222228817 | H112: 0.06304434001 | I112: 40.0 | J112: 0 | K112: 0 | L112: 0 | M112: 0
A113: SLP-TUM | B113: HB_HMF03 | C113: M23 | D113: Bundeslandprofil | E113: 2.442807213 | F113: -34.73214376 | G113: 5.734734725 | H113: 0.09409700673 | I113: 40.0 | J113: 0 | K113: 0 | L113: 0 | M113: 0
A114: SLP-TUM | B114: HB_HMF04 | C114: M24 | D114: Bundeslandprofil | E114: 2.573665212 | F114: -35.01694418 | G114: 6.131813978 | H114: 0.07586035486 | I114: 40.0 | J114: 0 | K114: 0 | L114: 0 | M114: 0
A115: SLP-TUM | B115: HE_HEF03 | C115: F13 | D115: Bundeslandprofil | E115: 3.055384245 | F115: -37.18363742 | G115: 5.68108246 | H115: 0.09501838564 | I115: 40.0 | J115: 0 | K115: 0 | L115: 0 | M115: 0
A116: SLP-TUM | B116: HE_HEF04 | C116: F14 | D116: Bundeslandprofil | E116: 3.193597811 | F116: -37.41424783 | G116: 6.182402147 | H116: 0.07486246312 | I116: 40.0 | J116: 0 | K116: 0 | L116: 0 | M116: 0
A117: SLP-TUM | B117: HE_HMF03 | C117: F23 | D117: Bundeslandprofil | E117: 2.398755232 | F117: -34.72348777 | G117: 5.799644639 | H117: 0.1175349439 | I117: 40.0 | J117: 0 | K117: 0 | L117: 0 | M117: 0
A118: SLP-TUM | B118: HE_HMF04 | C118: F24 | D118: Bundeslandprofil | E118: 2.529738018 | F118: -35.03001451 | G118: 6.205110889 | H118: 0.09770896618 | I118: 40.0 | J118: 0 | K118: 0 | L118: 0 | M118: 0
A119: SLP-TUM | B119: HH_HEF03 | C119: H13 | D119: Bundeslandprofil | E119: 3.07222145 | F119: -37.18428443 | G119: 5.697523357 | H119: 0.09041884893 | I119: 40.0 | J119: 0 | K119: 0 | L119: 0 | M119: 0
A120: SLP-TUM | B120: HH_HEF04 | C120: H14 | D120: Bundeslandprofil | E120: 3.210765924 | F120: -37.41788008 | G120: 6.202399971 | H120: 0.07060170075 | I120: 40.0 | J120: 0 | K120: 0 | L120: 0 | M120: 0
A121: SLP-TUM | B121: HH_HMF03 | C121: H23 | D121: Bundeslandprofil | E121: 2.420768371 | F121: -34.72779173 | G121: 5.766825222 | H121: 0.1082275312 | I121: 40.0 | J121: 0 | K121: 0 | L121: 0 | M121: 0
A122: SLP-TUM | B122: HH_HMF04 | C122: H24 | D122: Bundeslandprofil | E122: 2.551688228 | F122: -35.02342194 | G122: 6.168069942 | H122: 0.08870576244 | I122: 40.0 | J122: 0 | K122: 0 | L122: 0 | M122: 0
A123: SLP-TUM | B123: MV_HEF03 | C123: V13 | D123: Bundeslandprofil | E123: 3.02173986 | F123: -37.18235995 | G123: 5.647716955 | H123: 0.1151169395 | I123: 40.0 | J123: 0 | K123: 0 | L123: 0 | M123: 0
A124: SLP-TUM | B124: MV_HEF04 | C124: V14 | D124: Bundeslandprofil | E124: 3.159294041 | F124: -37.406886 | G124: 6.14189256 | H124: 0.09216857774 | I124: 40.0 | J124: 0 | K124: 0 | L124: 0 | M124: 0
A125: SLP-TUM | B125: MV_HMF03 | C125: V23 | D125: Bundeslandprofil | E125: 2.354808279 | F125: -34.71502985 | G125: 5.867563927 | H125: 0.1507678839 | I125: 40.0 | J125: 0 | K125: 0 | L125: 0 | M125: 0
A126: SLP-TUM | B126: MV_HMF04 | C126: V24 | D126: Bundeslandprofil | E126: 2.485916058 | F126: -35.04359777 | G126: 6.281821421 | H126: 0.1282547025 | I126: 40.0 | J126: 0 | K126: 0 | L126: 0 | M126: 0
A127: SLP-TUM | B127: NI_HEF03 | C127: I13 | D127: Bundeslandprofil | E127: 3.055384245 | F127: -37.18363742 | G127: 5.68108246 | H127: 0.1029175044 | I127: 40.0 | J127: 0 | K127: 0 | L127: 0 | M127: 0
A128: SLP-TUM | B128: NI_HEF04 | C128: I14 | D128: Bundeslandprofil | E128: 3.193597811 | F128: -37.41424783 | G128: 6.182402147 | H128: 0.08108596909 | I128: 40.0 | J128: 0 | K128: 0 | L128: 0 | M128: 0
A129: SLP-TUM | B129: NI_HMF03 | C129: I23 | D129: Bundeslandprofil | E129: 2.398755232 | F129: -34.72348777 | G129: 5.799644639 | H129: 0.1273059211 | I129: 40.0 | J129: 0 | K129: 0 | L129: 0 | M129: 0
A130: SLP-TUM | B130: NI_HMF04 | C130: I24 | D130: Bundeslandprofil | E130: 2.529738018 | F130: -35.03001451 | G130: 6.205110889 | H130: 0.1058317598 | I130: 40.0 | J130: 0 | K130: 0 | L130: 0 | M130: 0
A131: SLP-TUM | B131: NW_HEF03 | C131: N13 | D131: Bundeslandprofil | E131: 3.055384245 | F131: -37.18363742 | G131: 5.68108246 | H131: 0.08219662758 | I131: 40.0 | J131: 0 | K131: 0 | L131: 0 | M131: 0
A132: SLP-TUM | B132: NW_HEF04 | C132: N14 | D132: Bundeslandprofil | E132: 3.193597811 | F132: -37.41424783 | G132: 6.182402147 | H132: 0.06476054039 | I132: 40.0 | J132: 0 | K132: 0 | L132: 0 | M132: 0
A133: SLP-TUM | B133: NW_HMF03 | C133: N23 | D133: Bundeslandprofil | E133: 2.398755232 | F133: -34.72348777 | G133: 5.799644639 | H133: 0.1016748069 | I133: 40.0 | J133: 0 | K133: 0 | L133: 0 | M133: 0
A134: SLP-TUM | B134: NW_HMF04 | C134: N24 | D134: Bundeslandprofil | E134: 2.529738018 | F134: -35.03001451 | G134: 6.205110889 | H134: 0.08452414183 | I134: 40.0 | J134: 0 | K134: 0 | L134: 0 | M134: 0
A135: SLP-TUM | B135: RP_HEF03 | C135: P13 | D135: Bundeslandprofil | E135: 3.038554675 | F135: -37.18299084 | G135: 5.664486865 | H135: 0.09333957487 | I135: 40.0 | J135: 0 | K135: 0 | L135: 0 | M135: 0
A136: SLP-TUM | B136: RP_HEF04 | C136: P14 | D136: Bundeslandprofil | E136: 3.176440449 | F136: -37.41058315 | G136: 6.162233598 | H136: 0.0741542634 | I136: 40.0 | J136: 0 | K136: 0 | L136: 0 | M136: 0
A137: SLP-TUM | B137: RP_HMF03 | C137: P23 | D137: Bundeslandprofil | E137: 2.37676835 | F137: -34.71923325 | G137: 5.833216164 | H137: 0.1189572037 | I137: 40.0 | J137: 0 | K137: 0 | L137: 0 | M137: 0
A138: SLP-TUM | B138: RP_HMF04 | C138: P24 | D138: Bundeslandprofil | E138: 2.507817019 | F138: -35.03673633 | G138: 6.243015903 | H138: 0.1001117638 | I138: 40.0 | J138: 0 | K138: 0 | L138: 0 | M138: 0
A139: SLP-TUM | B139: SH_HEF03 | C139: L13 | D139: Bundeslandprofil | E139: 3.038554675 | F139: -37.18299084 | G139: 5.664486865 | H139: 0.1064543759 | I139: 40.0 | J139: 0 | K139: 0 | L139: 0 | M139: 0
A140: SLP-TUM | B140: SH_HEF04 | C140: L14 | D140: Bundeslandprofil | E140: 3.176440449 | F140: -37.41058315 | G140: 6.162233598 | H140: 0.08457340674 | I140: 40.0 | J140: 0 | K140: 0 | L140: 0 | M140: 0
A141: SLP-TUM | B141: SH_HMF03 | C141: L23 | D141: Bundeslandprofil | E141: 2.37676835 | F141: -34.71923325 | G141: 5.833216164 | H141: 0.1356714437 | I141: 40.0 | J141: 0 | K141: 0 | L141: 0 | M141: 0
A142: SLP-TUM | B142: SH_HMF04 | C142: L24 | D142: Bundeslandprofil | E142: 2.507817019 | F142: -35.03673633 | G142: 6.243015903 | H142: 0.1141781002 | I142: 40.0 | J142: 0 | K142: 0 | L142: 0 | M142: 0
A143: SLP-TUM | B143: SL_HEF03 | C143: A13 | D143: Bundeslandprofil | E143: 3.07222145 | F143: -37.18428443 | G143: 5.697523357 | H143: 0.09352145649 | I143: 40.0 | J143: 0 | K143: 0 | L143: 0 | M143: 0
A144: SLP-TUM | B144: SL_HEF04 | C144: A14 | D144: Bundeslandprofil | E144: 3.210765924 | F144: -37.41788008 | G144: 6.202399971 | H144: 0.07302430813 | I144: 40.0 | J144: 0 | K144: 0 | L144: 0 | M144: 0
A145: SLP-TUM | B145: SL_HMF03 | C145: A23 | D145: Bundeslandprofil | E145: 2.420768371 | F145: -34.72779173 | G145: 5.766825222 | H145: 0.111941221 | I145: 40.0 | J145: 0 | K145: 0 | L145: 0 | M145: 0
A146: SLP-TUM | B146: SL_HMF04 | C146: A24 | D146: Bundeslandprofil | E146: 2.551688228 | F146: -35.02342194 | G146: 6.168069942 | H146: 0.09174958762 | I146: 40.0 | J146: 0 | K146: 0 | L146: 0 | M146: 0
A147: SLP-TUM | B147: SN_HEF03 | C147: S13 | D147: Bundeslandprofil | E147: 3.038554675 | F147: -37.18299084 | G147: 5.664486865 | H147: 0.1124800953 | I147: 40.0 | J147: 0 | K147: 0 | L147: 0 | M147: 0
A148: SLP-TUM | B148: SN_HEF04 | C148: S14 | D148: Bundeslandprofil | E148: 3.176440449 | F148: -37.41058315 | G148: 6.162233598 | H148: 0.0893605807 | I148: 40.0 | J148: 0 | K148: 0 | L148: 0 | M148: 0
A149: SLP-TUM | B149: SN_HMF03 | C149: S23 | D149: Bundeslandprofil | E149: 2.37676835 | F149: -34.71923325 | G149: 5.833216164 | H149: 0.1433509594 | I149: 40.0 | J149: 0 | K149: 0 | L149: 0 | M149: 0
A150: SLP-TUM | B150: SN_HMF04 | C150: S24 | D150: Bundeslandprofil | E150: 2.507817019 | F150: -35.03673633 | G150: 6.243015903 | H150: 0.1206410115 | I150: 40.0 | J150: 0 | K150: 0 | L150: 0 | M150: 0
A151: SLP-TUM | B151: ST_HEF03 | C151: C13 | D151: Bundeslandprofil | E151: 3.02173986 | F151: -37.18235995 | G151: 5.647716955 | H151: 0.1182841781 | I151: 40.0 | J151: 0 | K151: 0 | L151: 0 | M151: 0
A152: SLP-TUM | B152: ST_HEF04 | C152: C14 | D152: Bundeslandprofil | E152: 3.159294041 | F152: -37.406886 | G152: 6.14189256 | H152: 0.09470443279 | I152: 40.0 | J152: 0 | K152: 0 | L152: 0 | M152: 0
A153: SLP-TUM | B153: ST_HMF03 | C153: C23 | D153: Bundeslandprofil | E153: 2.354808279 | F153: -34.71502985 | G153: 5.867563927 | H153: 0.154915995 | I153: 40.0 | J153: 0 | K153: 0 | L153: 0 | M153: 0
A154: SLP-TUM | B154: ST_HMF04 | C154: C24 | D154: Bundeslandprofil | E154: 2.485916058 | F154: -35.04359777 | G154: 6.281821421 | H154: 0.1317834033 | I154: 40.0 | J154: 0 | K154: 0 | L154: 0 | M154: 0
A155: SLP-TUM | B155: TH_HEF03 | C155: T13 | D155: Bundeslandprofil | E155: 3.02173986 | F155: -37.18235995 | G155: 5.647716955 | H155: 0.1170660094 | I155: 40.0 | J155: 0 | K155: 0 | L155: 0 | M155: 0
A156: SLP-TUM | B156: TH_HEF04 | C156: T14 | D156: Bundeslandprofil | E156: 3.159294041 | F156: -37.406886 | G156: 6.14189256 | H156: 0.09372910393 | I156: 40.0 | J156: 0 | K156: 0 | L156: 0 | M156: 0
A157: SLP-TUM | B157: TH_HMF03 | C157: T23 | D157: Bundeslandprofil | E157: 2.354808279 | F157: -34.71502985 | G157: 5.867563927 | H157: 0.1533205677 | I157: 40.0 | J157: 0 | K157: 0 | L157: 0 | M157: 0
A158: SLP-TUM | B158: TH_HMF04 | C158: T24 | D158: Bundeslandprofil | E158: 2.485916058 | F158: -35.04359777 | G158: 6.281821421 | H158: 0.1304262107 | I158: 40.0 | J158: 0 | K158: 0 | L158: 0 | M158: 0

Sheet Wochentag F(WT) (hidden)
A1: BDEW Standardlastprofile - WT-Koef. | D1: hier keine Eintragungen / Veränderungen vornehmen !
B2: Wochentagfaktoren gemäß TUM
A3: # | B3: Bezeichnung | D3: Wochentagfaktoren
D4: F(Mo) | E4: F(Di) | F4: F(Mi) | G4: F(Do) | H4: F(Fr) | I4: F(Sa) | J4: F(So)
B5: Tag | D5: Mo | E5: Di | F5: Mi | G5: Do | H5: Fr | I5: Sa | J5: So | K5: Mo-So | L5: Max Tag | M5: Max Wert | N5: Profil-Art | O5: H/N-Profil | P5: Alternative Profilempfehlung
B6: 1 | C6: 2 | D6: 3 | E6: 4 | F6: 5 | G6: 6 | H6: 7 | I6: 8 | J6: 9 | K6: 10 | L6: 11 | M6: 12
A7: 1 | B7: HEF | C7: Einfamilienhaushalt | D7: 1.0000 | E7: 1.0000 | F7: 1.0000 | G7: 1.0000 | H7: 1.0000 | I7: 1.0000 | J7: 1.0000 | K7: 1.0000 | L7: Mo-So | M7: =MAX(D7:J7) -> 1.0000 | N7: Heizgas
A8: 2 | B8: HMF | C8: Mehrfamilienhaushalt | D8: 1.0000 | E8: 1.0000 | F8: 1.0000 | G8: 1.0000 | H8: 1.0000 | I8: 1.0000 | J8: 1.0000 | K8: 1.0000 | L8: Mo-So | M8: 1.0000 | N8: Heizgas
A9: 3 | B9: HKO | C9: Kochgas | D9: 1.0000 | E9: 1.0000 | F9: 1.0000 | G9: 1.0000 | H9: 1.0000 | I9: 1.0000 | J9: 1.0000 | K9: 1.0000 | L9: Mo-So | M9: =MAX(D9:J9) -> 1.0000 | N9: Kochgas
A11: 4 | B11: GKO | C11: Gebietskörpersch., Kreditinst. u. Versich., Org. o. Erwerbszw. & öff. Einr. | D11: 1.0354 | E11: 1.0523 | F11: 1.0449 | G11: 1.0494 | H11: 0.9885 | I11: 0.8860 | J11: 0.9436 | K11: 1.0000 | L11: Di | M11: 1.0523 | N11: Gewerbe | O11: Hauptprofil
A12: 5 | B12: GHA | C12: Einzelhandel, Großhandel | D12: 1.0358 | E12: 1.0232 | F12: 1.0252 | G12: 1.0295 | H12: 1.0253 | I12: 0.9675 | J12: 0.8934 | K12: 1.0000 | L12: Mo | M12: 1.0358 | N12: Gewerbe | O12: Hauptprofil
A13: 6 | B13: GMK | C13: Metall, Kfz | D13: 1.0699 | E13: 1.0365 | F13: 0.9933 | G13: 0.9948 | H13: 1.0659 | I13: 0.9362 | J13: 0.9035 | K13: 1.0000 | L13: Mo | M13: 1.0699 | N13: Gewerbe | O13: Hauptprofil
A14: 7 | B14: GBD | C14: sonst. betr. Dienstleistungen | D14: 1.1052 | E14: 1.0857 | F14: 1.0378 | G14: 1.0622 | H14: 1.0266 | I14: 0.7629 | J14: 0.8980 | K14: 1.0000 | L14: Mo | M14: 1.1052 | N14: Gewerbe | O14: Hauptprofil
A15: 8 | B15: GBH | C15: Beherbergung | D15: 0.9767 | E15: 1.0389 | F15: 1.0028 | G15: 1.0162 | H15: 1.0024 | I15: 1.0043 | J15: 0.9584 | K15: 1.0000 | L15: Di | M15: 1.0389 | N15: Gewerbe | O15: Hauptprofil
A16: 9 | B16: GWA | C16: Wäschereien | D16: 1.2457 | E16: 1.2615 | F16: 1.2707 | G16: 1.2430 | H16: 1.1276 | I16: 0.3877 | J16: 0.4615 | K16: 1.0000 | L16: Mi | M16: =MAX(D16:J16) -> 1.2707 | N16: Gewerbe | O16: Hauptprofil
A17: 10 | B17: GGA | C17: Gaststätten | D17: 0.9322 | E17: 0.9894 | F17: 1.0033 | G17: 1.0109 | H17: 1.0180 | I17: 1.0356 | J17: 1.0091 | K17: 1.0000 | L17: Sa | M17: 1.0356 | N17: Gewerbe | O17: Nebenprofil | P17: GBH
A18: 11 | B18: GBA | C18: Bäckereien | D18: 1.0848 | E18: 1.1211 | F18: 1.0769 | G18: 1.1353 | H18: 1.1402 | I18: 0.4852 | J18: 0.9584 | K18: 1.0000 | L18: Fr | M18: 1.1402 | N18: Gewerbe | O18: Nebenprofil | P18: GWA
A19: 12 | B19: GGB | C19: Gartenbau | D19: 0.9897 | E19: 0.9627 | F19: 1.0507 | G19: 1.0552 | H19: 1.0297 | I19: 0.9767 | J19: 0.9360 | K19: 1.0000 | L19: Do | M19: 1.0552 | N19: Gewerbe | O19: Nebenprofil | P19: GKO
A20: 13 | B20: GPD | C20: Papier und Druck | D20: 1.0214 | E20: 1.0866 | F20: 1.0720 | G20: 1.0557 | H20: 1.0117 | I20: 0.9001 | J20: 0.8511 | K20: 1.0000 | L20: Mo | M20: 1.0866 | N20: Gewerbe | O20: Nebenprofil | P20: GHA
A21: 14 | B21: GMF | C21: haushaltsähnliche Gewerbebetriebe | D21: =D11 -> 1.0354 | E21: =E11 -> 1.0523 | F21: 1.0449 | G21: 1.0494 | H21: 0.9885 | I21: 0.8860 | J21: 0.9436 | K21: 1.0000 | L21: Di | M21: 1.0523 | N21: Gewerbe | O21: Nebenprofil | P21: GBH
A22: 15 | B22: GHD | C22: Summenlastprofil Gewerbe, Handel, Dienstleistung | D22: 1.0300 | E22: 1.0300 | F22: 1.0200 | G22: 1.0300 | H22: 1.0100 | I22: 0.9300 | J22: 0.9400 | K22: 1.0000 | L22: Di | M22: =MAX(D22:J22) -> 1.0300 | N22: Gewerbe | O22: Nebenprofil
